{"text_format":"1","workbook":"xlsx","n_sheets":19,"sheets":["Zusammenstellung","1","2","3","4","5","6","7","8","9","10","11","12","13","14","15","16","17","18"],"not_rendered":{"charts":0,"images":1,"macros":1,"external_links":0,"defined_names":18,"comments":0,"pivot_tables":0},"unopened":[],"bounds":{"document_bytes":16777216,"sheet_cells":100000,"rows_first":2000,"rows_last":500,"rows_between":2000,"halvings":0,"cell_chars":16384,"cell_head_chars":4096},"cells_cut":0,"cells_raw":0,"read":"whole","date_system":"1900"}

{"sheet":"Zusammenstellung","index":0,"n_rows":27,"n_cols":9,"rows_kept":27,"cut":false,"hidden":false,"merged":[[0,3,0,4]]}
[null,null,null,"Eidgenössisches Finanzdepartement EFD\n\nBundesamt für Zoll und Grenzsicherheit BAZG\n"]
["Name und Adresse:",null,null,null,null,null,null,null,"Kundennummer"]
["Name",null,null," Jahres - Zusammenstellung"]
["Strasse",null,null," der gebrannten Wasser (Alkoholbuchhaltung)"]
["PLZ, Ort",null,null,null,null,null,null," Brennjahr"]
["Telefon",null,null,"Spirituosenkonten","Gesamteingang","Gesamtausgang","Saldo","Inventar","Differenzen"]
["Bemerkungen:",null,null,null,"inkl. Anfangsvorrat",null,null,null,"inkl. Verbrauch"]
[null,null,null,"Sorten","Liter 100%","Liter 100%","Liter 100%","Liter 100%","Liter 100%"]
[null,null,1,null,{"$f":"'1'!G1","v":0},{"$f":"'1'!G2","v":0},{"$f":"SUM(E9-F9)","v":0},null,{"$f":"ROUND(SUM(G9-H9),2)","v":0}]
[null,null,2,null,{"$f":"'2'!G1","v":0},{"$f":"'2'!G2","v":0},{"$f":"SUM(E10-F10)","v":0},null,{"$f":"ROUND(SUM(G10-H10),2)","v":0}]
[null,null,3,null,{"$f":"'3'!G1","v":0},{"$f":"'3'!G2","v":0},{"$f":"SUM(E11-F11)","v":0},null,0]
[null,null,4,null,{"$f":"'4'!G1","v":0},{"$f":"'4'!G2","v":0},0,null,0]
[null,null,5,null,{"$f":"'5'!G1","v":0},{"$f":"'5'!G2","v":0},0,null,0]
[" Die unterzeichnende Person bestätigt,",null,6,null,{"$f":"'6'!G1","v":0},{"$f":"'6'!G2","v":0},0,null,0]
[" die Eintragungen in dieser Buchhaltung",null,7,null,{"$f":"'7'!G1","v":0},{"$f":"'7'!G2","v":0},0,null,0]
[" vollständig und wahrheitsgetreu",null,8,null,{"$f":"'8'!G1","v":0},{"$f":"'8'!G2","v":0},0,null,0]
[" vorgenommen, geprüft und als richtig",null,9,null,{"$f":"'9'!G1","v":0},{"$f":"'9'!G2","v":0},0,null,0]
[" befunden zu haben.",null,10,null,{"$f":"'10'!G1","v":0},{"$f":"'10'!G2","v":0},0,null,0]
[null,null,11,null,{"$f":"'11'!G1","v":0},{"$f":"'11'!G2","v":0},0,null,0]
["Datum:",null,12,null,{"$f":"'12'!G1","v":0},{"$f":"'12'!G2","v":0},0,null,0]
[null,null,13,null,{"$f":"'13'!G1","v":0},{"$f":"'13'!G2","v":0},0,null,0]
[null,null,14,null,{"$f":"'14'!G1","v":0},{"$f":"'14'!G2","v":0},0,null,0]
["Unterschrift des/der Verantwortlichen:",null,15,null,{"$f":"'15'!G1","v":0},{"$f":"'15'!G2","v":0},0,null,0]
[null,null,16,null,{"$f":"'16'!G1","v":0},{"$f":"'16'!G2","v":0},0,null,0]
[null,null,17,null,{"$f":"'17'!G1","v":0},{"$f":"'17'!G2","v":0},0,null,0]
[null,null,18,null,{"$f":"'18'!G1","v":0},{"$f":"'18'!G2","v":0},0,null,0]
[null,null,null,"Total ",{"$f":"SUM(E9:E26)","v":0},{"$f":"SUM(F9:F26)","v":0},{"$f":"SUM(G9:G26)","v":0},{"$f":"SUM(H9:H26)","v":0},{"$f":"SUM(I9:I26)","v":0}]

{"sheet":"1","index":1,"n_rows":120,"n_cols":15,"rows_kept":120,"cut":false,"hidden":false,"merged":[[4,1,5,1],[4,14,5,14],[0,13,0,14],[1,13,1,14]]}
[null,{"$f":"Zusammenstellung!D9","v":0},null,null,"Total Eingang",null,{"$f":"SUM(H7:H120)","v":0},"Liter 100%",null,null,null,null,null,"Kundennummer"]
[null,null,null,null,"Total Ausgang",null,{"$f":"SUM(N8:N120)","v":0},"Liter 100%",null,null,null,null,null,{"$f":"Zusammenstellung!I3","v":0}]
["Brennjahr",{"$f":"Zusammenstellung!I5","v":0},null,null,"Saldo",null,{"$f":"SUM(G1-G2)","v":0},"Liter 100%"]
[]
[null,"Eingang:  Erzeugung / Fabrikation \nAusgang: Name und Adresse des Käufers / Verwendung\n                  für Fabrikation / Degustation / Geschenke",null,null,null,"Eingang",null,null,null,null,null,"Ausgang",null,null,"Datum der Steuer-anmeldung"]
["Datum",null,null,"Anzahl\nFlaschen","Inhalt\nje Flasche","Liter ","Vol.%","Liter 100%",null,"Anzahl\nFlaschen","Inhalt\nje Flasche","Liter ","Vol.%","Liter 100%"]
[" ","Anfangsvorrat / Übertrag",null,null,null,{"$f":"SUM(D7*E7)","v":0},null,{"$f":"ROUND(F7*G7/100,2)","v":0}]
[null,null,null,null,null,{"$f":"SUM(D8*E8)","v":0},null,{"$f":"ROUND(F8*G8/100,2)","v":0},null,null,null,{"$f":"SUM(J8*K8)","v":0},null,{"$f":"ROUND(L8*M8/100,2)","v":0}]
[null,null,null,null,null,{"$f":"SUM(D9*E9)","v":0},null,{"$f":"ROUND(F9*G9/100,2)","v":0},null,null,null,0,null,{"$f":"ROUND(L9*M9/100,2)","v":0}]
[null,null,null,null,null,0,null,0,null,null,null,0,null,0]
[null,null,null,null,null,0,null,0,null,null,null,0,null,0]
[null,null,null,null,null,0,null,0,null,null,null,0,null,0]
[null,null,null,null,null,0,null,0,null,null,null,0,null,0]
[null,null,null,null,null,0,null,0,null,null,null,0,null,0]
[null,null,null,null,null,0,null,0,null,null,null,0,null,0]
[null,null,null,null,null,0,null,0,null,null,null,0,null,0]
[null,null,null,null,null,0,null,0,null,null,null,0,null,0]
[null,null,null,null,null,0,null,0,null,null,null,0,null,0]
[null,null,null,null,null,0,null,0,null,null,null,0,null,0]
[null,null,null,null,null,0,null,0,null,null,null,0,null,0]
[null,null,null,null,null,0,null,0,null,null,null,0,null,0]
[null,null,null,null,null,0,null,0,null,null,null,0,null,0]
[null,null,null,null,null,0,null,0,null,null,null,0,null,0]
[null,null,null,null,null,0,null,0,null,null,null,0,null,0]
[null,null,null,null,null,0,null,0,null,null,null,0,null,0]
[null,null,null,null,null,0,null,0,null,null,null,0,null,0]
[null,null,null,null,null,0,null,0,null,null,null,0,null,0]
[null,null,null,null,null,0,null,0,null,null,null,0,null,0]
[null,null,null,null,null,0,null,0,null,null,null,0,null,0]
[null,null,null,null,null,0,null,0,null,null,null,0,null,0]
[null,null,null,null,null,0,null,0,null,null,null,0,null,0]
[null,null,null,null,null,0,null,0,null,null,null,0,null,0]
[null,null,null,null,null,0,null,0,null,null,null,0,null,0]
[null,null,null,null,null,0,null,0,null,null,null,0,null,0]
[null,null,null,null,null,0,null,0,null,null,null,0,null,0]
[null,null,null,null,null,0,null,0,null,null,null,0,null,0]
[null,null,null,null,null,0,null,0,null,null,null,0,null,0]
[null,null,null,null,null,0,null,0,null,null,null,0,null,0]
[null,null,null,null,null,0,null,0,null,null,null,0,null,0]
[null,null,null,null,null,0,null,0,null,null,null,0,null,0]
[null,null,null,null,null,0,null,0,null,null,null,0,null,0]
[null,null,null,null,null,0,null,0,null,null,null,0,null,0]
[null,null,null,null,null,0,null,0,null,null,null,0,null,0]
[null,null,null,null,null,0,null,0,null,null,null,0,null,0]
[null,null,null,null,null,0,null,0,null,null,null,0,null,0]
[null,null,null,null,null,0,null,0,null,null,null,0,null,0]
[null,null,null,null,null,0,null,0,null,null,null,0,null,0]
[null,null,null,null,null,0,null,0,null,null,null,0,null,0]
[null,null,null,null,null,0,null,0,null,null,null,0,null,0]
[null,null,null,null,null,0,null,0,null,null,null,0,null,0]
[null,null,null,null,null,0,null,0,null,null,null,0,null,0]
[null,null,null,null,null,0,null,0,null,null,null,0,null,0]
[null,null,null,null,null,0,null,0,null,null,null,0,null,0]
[null,null,null,null,null,0,null,0,null,null,null,0,null,0]
[null,null,null,null,null,0,null,0,null,null,null,0,null,0]
[null,null,null,null,null,0,null,0,null,null,null,0,null,0]
[null,null,null,null,null,0,null,0,null,null,null,0,null,0]
[null,null,null,null,null,0,null,0,null,null,null,0,null,0]
[null,null,null,null,null,0,null,0,null,null,null,0,null,0]
[null,null,null,null,null,0,null,0,null,null,null,0,null,0]
[null,null,null,null,null,0,null,0,null,null,null,0,null,0]
[null,null,null,null,null,0,null,0,null,null,null,0,null,0]
[null,null,null,null,null,0,null,0,null,null,null,0,null,0]
[null,null,null,null,null,0,null,0,null,null,null,0,null,0]
[null,null,null,null,null,0,null,0,null,null,null,0,null,0]
[null,null,null,null,null,0,null,0,null,null,null,0,null,0]
[null,null,null,null,null,0,null,0,null,null,null,0,null,0]
[null,null,null,null,null,0,null,0,null,null,null,0,null,0]
[null,null,null,null,null,0,null,0,null,null,null,0,null,0]
[null,null,null,null,null,0,null,0,null,null,null,0,null,0]
[null,null,null,null,null,0,null,0,null,null,null,0,null,0]
[null,null,null,null,null,0,null,0,null,null,null,0,null,0]
[null,null,null,null,null,{"$f":"SUM(D73*E73)","v":0},null,{"$f":"ROUND(F73*G73/100,2)","v":0},null,null,null,{"$f":"SUM(J73*K73)","v":0},null,{"$f":"ROUND(L73*M73/100,2)","v":0}]
[null,null,null,null,null,0,null,0,null,null,null,0,null,0]
[null,null,null,null,null,0,null,0,null,null,null,0,null,0]
[null,null,null,null,null,0,null,0,null,null,null,0,null,0]
[null,null,null,null,null,0,null,0,null,null,null,0,null,0]
[null,null,null,null,null,0,null,0,null,null,null,0,null,0]
[null,null,null,null,null,0,null,0,null,null,null,0,null,0]
[null,null,null,null,null,0,null,0,null,null,null,0,null,0]
[null,null,null,null,null,0,null,0,null,null,null,0,null,0]
[null,null,null,null,null,0,null,0,null,null,null,0,null,0]
[null,null,null,null,null,0,null,0,null,null,null,0,null,0]
[null,null,null,null,null,0,null,0,null,null,null,0,null,0]
[null,null,null,null,null,0,null,0,null,null,null,0,null,0]
[null,null,null,null,null,0,null,0,null,null,null,0,null,0]
[null,null,null,null,null,0,null,0,null,null,null,0,null,0]
[null,null,null,null,null,0,null,0,null,null,null,0,null,0]
[null,null,null,null,null,0,null,0,null,null,null,0,null,0]
[null,null,null,null,null,0,null,0,null,null,null,0,null,0]
[null,null,null,null,null,0,null,0,null,null,null,0,null,0]
[null,null,null,null,null,0,null,0,null,null,null,0,null,0]
[null,null,null,null,null,0,null,0,null,null,null,0,null,0]
[null,null,null,null,null,0,null,0,null,null,null,0,null,0]
[null,null,null,null,null,0,null,0,null,null,null,0,null,0]
[null,null,null,null,null,0,null,0,null,null,null,0,null,0]
[null,null,null,null,null,0,null,0,null,null,null,0,null,0]
[null,null,null,null,null,0,null,0,null,null,null,0,null,0]
[null,null,null,null,null,0,null,0,null,null,null,0,null,0]
[null,null,null,null,null,0,null,0,null,null,null,0,null,0]
[null,null,null,null,null,0,null,0,null,null,null,0,null,0]
[null,null,null,null,null,0,null,0,null,null,null,0,null,0]
[null,null,null,null,null,0,null,0,null,null,null,0,null,0]
[null,null,null,null,null,0,null,0,null,null,null,0,null,0]
[null,null,null,null,null,{"$f":"SUM(D105*E105)","v":0},null,0,null,null,null,{"$f":"SUM(J105*K105)","v":0},null,0]
[null,null,null,null,null,0,null,0,null,null,null,0,null,0]
[null,null,null,null,null,0,null,0,null,null,null,0,null,0]
[null,null,null,null,null,0,null,0,null,null,null,0,null,0]
[null,null,null,null,null,0,null,0,null,null,null,0,null,0]
[null,null,null,null,null,0,null,0,null,null,null,0,null,0]
[null,null,null,null,null,0,null,0,null,null,null,0,null,0]
[null,null,null,null,null,0,null,0,null,null,null,0,null,0]
[null,null,null,null,null,0,null,0,null,null,null,0,null,0]
[null,null,null,null,null,0,null,0,null,null,null,0,null,0]
[null,null,null,null,null,0,null,0,null,null,null,0,null,0]
[null,null,null,null,null,0,null,0,null,null,null,0,null,0]
[null,null,null,null,null,0,null,0,null,null,null,0,null,0]
[null,null,null,null,null,0,null,0,null,null,null,0,null,0]
[null,null,null,null,null,0,null,0,null,null,null,0,null,0]
[null,null,null,null,null,{"$f":"SUM(D120*E120)","v":0},null,0,null,null,null,{"$f":"SUM(J120*K120)","v":0},null,0]

{"sheet":"2","index":2,"n_rows":120,"n_cols":15,"rows_kept":120,"cut":false,"hidden":false,"merged":[[4,1,5,1],[4,14,5,14],[0,13,0,14],[1,13,1,14]]}
[null,{"$f":"Zusammenstellung!D10","v":0},null,null,"Total Eingang",null,{"$f":"SUM(H7:H120)","v":0},"Liter 100%",null,null,null,null,null,"Kundennummer"]
[null,null,null,null,"Total Ausgang",null,{"$f":"SUM(N8:N120)","v":0},"Liter 100%",null,null,null,null,null,{"$f":"Zusammenstellung!I3","v":0}]
["Brennjahr",{"$f":"Zusammenstellung!I5","v":0},null,null,"Saldo",null,{"$f":"SUM(G1-G2)","v":0},"Liter 100%",null,null,null,null,null,{"$f":"Zusammenstellung!H4","v":0},{"$f":"Zusammenstellung!I4","v":0}]
[]
[null,"Eingang:  Erzeugung / Fabrikation \nAusgang: Name und Adresse des Käufers / Verwendung\n                  für Fabrikation / Degustation / Geschenke",null,null,null,"Eingang",null,null,null,null,null,"Ausgang",null,null,"Datum der Steuer-anmeldung"]
["Datum",null,null,"Anzahl\nFlaschen","Inhalt\nje Flasche","Liter ","Vol.%","Liter 100%",null,"Anzahl\nFlaschen","Inhalt\nje Flasche","Liter ","Vol.%","Liter 100%"]
[" ","Anfangsvorrat / Übertrag",null,null,null,{"$f":"SUM(D7*E7)","v":0},null,{"$f":"ROUND(F7*G7/100,2)","v":0}]
[null,null,null,null,null,{"$f":"SUM(D8*E8)","v":0},null,{"$f":"ROUND(F8*G8/100,2)","v":0},null,null,null,{"$f":"SUM(J8*K8)","v":0},null,{"$f":"ROUND(L8*M8/100,2)","v":0}]
[null,null,null,null,null,{"$f":"SUM(D9*E9)","v":0},null,{"$f":"ROUND(F9*G9/100,2)","v":0},null,null,null,{"$f":"SUM(J9*K9)","v":0},null,{"$f":"ROUND(L9*M9/100,2)","v":0}]
[null,null,null,null,null,0,null,0,null,null,null,0,null,0]
[null,null,null,null,null,0,null,0,null,null,null,0,null,0]
[null,null,null,null,null,0,null,0,null,null,null,0,null,0]
[null,null,null,null,null,0,null,0,null,null,null,0,null,0]
[null,null,null,null,null,0,null,0,null,null,null,0,null,0]
[null,null,null,null,null,0,null,0,null,null,null,0,null,0]
[null,null,null,null,null,0,null,0,null,null,null,0,null,0]
[null,null,null,null,null,0,null,0,null,null,null,0,null,0]
[null,null,null,null,null,0,null,0,null,null,null,0,null,0]
[null,null,null,null,null,0,null,0,null,null,null,0,null,0]
[null,null,null,null,null,0,null,0,null,null,null,0,null,0]
[null,null,null,null,null,0,null,0,null,null,null,0,null,0]
[null,null,null,null,null,0,null,0,null,null,null,0,null,0]
[null,null,null,null,null,0,null,0,null,null,null,0,null,0]
[null,null,null,null,null,0,null,0,null,null,null,0,null,0]
[null,null,null,null,null,0,null,0,null,null,null,0,null,0]
[null,null,null,null,null,0,null,0,null,null,null,0,null,0]
[null,null,null,null,null,0,null,0,null,null,null,0,null,0]
[null,null,null,null,null,0,null,0,null,null,null,0,null,0]
[null,null,null,null,null,0,null,0,null,null,null,0,null,0]
[null,null,null,null,null,0,null,0,null,null,null,0,null,0]
[null,null,null,null,null,0,null,0,null,null,null,0,null,0]
[null,null,null,null,null,0,null,0,null,null,null,0,null,0]
[null,null,null,null,null,0,null,0,null,null,null,0,null,0]
[null,null,null,null,null,0,null,0,null,null,null,0,null,0]
[null,null,null,null,null,0,null,0,null,null,null,0,null,0]
[null,null,null,null,null,0,null,0,null,null,null,0,null,0]
[null,null,null,null,null,0,null,0,null,null,null,0,null,0]
[null,null,null,null,null,0,null,0,null,null,null,0,null,0]
[null,null,null,null,null,0,null,0,null,null,null,0,null,0]
[null,null,null,null,null,0,null,0,null,null,null,0,null,0]
[null,null,null,null,null,0,null,0,null,null,null,0,null,0]
[null,null,null,null,null,0,null,0,null,null,null,0,null,0]
[null,null,null,null,null,0,null,0,null,null,null,0,null,0]
[null,null,null,null,null,0,null,0,null,null,null,0,null,0]
[null,null,null,null,null,0,null,0,null,null,null,0,null,0]
[null,null,null,null,null,0,null,0,null,null,null,0,null,0]
[null,null,null,null,null,0,null,0,null,null,null,0,null,0]
[null,null,null,null,null,0,null,0,null,null,null,0,null,0]
[null,null,null,null,null,0,null,0,null,null,null,0,null,0]
[null,null,null,null,null,0,null,0,null,null,null,0,null,0]
[null,null,null,null,null,0,null,0,null,null,null,0,null,0]
[null,null,null,null,null,0,null,0,null,null,null,0,null,0]
[null,null,null,null,null,0,null,0,null,null,null,0,null,0]
[null,null,null,null,null,0,null,0,null,null,null,0,null,0]
[null,null,null,null,null,0,null,0,null,null,null,0,null,0]
[null,null,null,null,null,0,null,0,null,null,null,0,null,0]
[null,null,null,null,null,0,null,0,null,null,null,0,null,0]
[null,null,null,null,null,0,null,0,null,null,null,0,null,0]
[null,null,null,null,null,0,null,0,null,null,null,0,null,0]
[null,null,null,null,null,0,null,0,null,null,null,0,null,0]
[null,null,null,null,null,0,null,0,null,null,null,0,null,0]
[null,null,null,null,null,0,null,0,null,null,null,0,null,0]
[null,null,null,null,null,0,null,0,null,null,null,0,null,0]
[null,null,null,null,null,0,null,0,null,null,null,0,null,0]
[null,null,null,null,null,0,null,0,null,null,null,0,null,0]
[null,null,null,null,null,0,null,0,null,null,null,0,null,0]
[null,null,null,null,null,0,null,0,null,null,null,0,null,0]
[null,null,null,null,null,0,null,0,null,null,null,0,null,0]
[null,null,null,null,null,0,null,0,null,null,null,0,null,0]
[null,null,null,null,null,0,null,0,null,null,null,0,null,0]
[null,null,null,null,null,0,null,0,null,null,null,0,null,0]
[null,null,null,null,null,0,null,0,null,null,null,0,null,0]
[null,null,null,null,null,{"$f":"SUM(D73*E73)","v":0},null,{"$f":"ROUND(F73*G73/100,2)","v":0},null,null,null,{"$f":"SUM(J73*K73)","v":0},null,{"$f":"ROUND(L73*M73/100,2)","v":0}]
[null,null,null,null,null,0,null,0,null,null,null,0,null,0]
[null,null,null,null,null,0,null,0,null,null,null,0,null,0]
[null,null,null,null,null,0,null,0,null,null,null,0,null,0]
[null,null,null,null,null,0,null,0,null,null,null,0,null,0]
[null,null,null,null,null,0,null,0,null,null,null,0,null,0]
[null,null,null,null,null,0,null,0,null,null,null,0,null,0]
[null,null,null,null,null,0,null,0,null,null,null,0,null,0]
[null,null,null,null,null,0,null,0,null,null,null,0,null,0]
[null,null,null,null,null,0,null,0,null,null,null,0,null,0]
[null,null,null,null,null,0,null,0,null,null,null,0,null,0]
[null,null,null,null,null,0,null,0,null,null,null,0,null,0]
[null,null,null,null,null,0,null,0,null,null,null,0,null,0]
[null,null,null,null,null,0,null,0,null,null,null,0,null,0]
[null,null,null,null,null,0,null,0,null,null,null,0,null,0]
[null,null,null,null,null,0,null,0,null,null,null,0,null,0]
[null,null,null,null,null,0,null,0,null,null,null,0,null,0]
[null,null,null,null,null,0,null,0,null,null,null,0,null,0]
[null,null,null,null,null,0,null,0,null,null,null,0,null,0]
[null,null,null,null,null,0,null,0,null,null,null,0,null,0]
[null,null,null,null,null,0,null,0,null,null,null,0,null,0]
[null,null,null,null,null,0,null,0,null,null,null,0,null,0]
[null,null,null,null,null,0,null,0,null,null,null,0,null,0]
[null,null,null,null,null,0,null,0,null,null,null,0,null,0]
[null,null,null,null,null,0,null,0,null,null,null,0,null,0]
[null,null,null,null,null,0,null,0,null,null,null,0,null,0]
[null,null,null,null,null,0,null,0,null,null,null,0,null,0]
[null,null,null,null,null,0,null,0,null,null,null,0,null,0]
[null,null,null,null,null,0,null,0,null,null,null,0,null,0]
[null,null,null,null,null,0,null,0,null,null,null,0,null,0]
[null,null,null,null,null,0,null,0,null,null,null,0,null,0]
[null,null,null,null,null,0,null,0,null,null,null,0,null,0]
[null,null,null,null,null,0,null,0,null,null,null,0,null,0]
[null,null,null,null,null,0,null,0,null,null,null,0,null,0]
[null,null,null,null,null,0,null,0,null,null,null,0,null,0]
[null,null,null,null,null,0,null,0,null,null,null,0,null,0]
[null,null,null,null,null,0,null,0,null,null,null,0,null,0]
[null,null,null,null,null,0,null,0,null,null,null,0,null,0]
[null,null,null,null,null,0,null,0,null,null,null,0,null,0]
[null,null,null,null,null,0,null,0,null,null,null,0,null,0]
[null,null,null,null,null,0,null,0,null,null,null,0,null,0]
[null,null,null,null,null,0,null,0,null,null,null,0,null,0]
[null,null,null,null,null,0,null,0,null,null,null,0,null,0]
[null,null,null,null,null,0,null,0,null,null,null,0,null,0]
[null,null,null,null,null,0,null,0,null,null,null,0,null,0]
[null,null,null,null,null,0,null,0,null,null,null,0,null,0]
[null,null,null,null,null,0,null,0,null,null,null,0,null,0]
[null,null,null,null,null,0,null,0,null,null,null,{"$f":"SUM(J120*K120)","v":0},null,0]

{"sheet":"3","index":3,"n_rows":120,"n_cols":15,"rows_kept":120,"cut":false,"hidden":false,"merged":[[4,1,5,1],[4,14,5,14],[0,13,0,14],[1,13,1,14]]}
[null,{"$f":"Zusammenstellung!D11","v":0},null,null,"Total Eingang",null,{"$f":"SUM(H7:H120)","v":0},"Liter 100%",null,null,null,null,null,"Kundennummer"]
[null,null,null,null,"Total Ausgang",null,{"$f":"SUM(N8:N120)","v":0},"Liter 100%",null,null,null,null,null,{"$f":"Zusammenstellung!I3","v":0}]
["Brennjahr",{"$f":"Zusammenstellung!I5","v":0},null,null,"Saldo",null,{"$f":"SUM(G1-G2)","v":0},"Liter 100%",null,null,null,null,null,{"$f":"Zusammenstellung!H4","v":0},{"$f":"Zusammenstellung!I4","v":0}]
[]
[null,"Eingang:  Erzeugung / Fabrikation \nAusgang: Name und Adresse des Käufers / Verwendung\n                  für Fabrikation / Degustation / Geschenke",null,null,null,"Eingang",null,null,null,null,null,"Ausgang",null,null,"Datum der Steuer-anmeldung"]
["Datum",null,null,"Anzahl\nFlaschen","Inhalt\nje Flasche","Liter ","Vol.%","Liter 100%",null,"Anzahl\nFlaschen","Inhalt\nje Flasche","Liter ","Vol.%","Liter 100%"]
[" ","Anfangsvorrat / Übertrag",null,null,null,{"$f":"SUM(D7*E7)","v":0},null,{"$f":"ROUND(F7*G7/100,2)","v":0}]
[null,null,null,null,null,{"$f":"SUM(D8*E8)","v":0},null,{"$f":"ROUND(F8*G8/100,2)","v":0},null,null,null,{"$f":"SUM(J8*K8)","v":0},null,{"$f":"ROUND(L8*M8/100,2)","v":0}]
[null,null,null,null,null,{"$f":"SUM(D9*E9)","v":0},null,{"$f":"ROUND(F9*G9/100,2)","v":0},null,null,null,{"$f":"SUM(J9*K9)","v":0},null,{"$f":"ROUND(L9*M9/100,2)","v":0}]
[null,null,null,null,null,0,null,0,null,null,null,0,null,0]
[null,null,null,null,null,0,null,0,null,null,null,0,null,0]
[null,null,null,null,null,0,null,0,null,null,null,0,null,0]
[null,null,null,null,null,0,null,0,null,null,null,0,null,0]
[null,null,null,null,null,0,null,0,null,null,null,0,null,0]
[null,null,null,null,null,0,null,0,null,null,null,0,null,0]
[null,null,null,null,null,0,null,0,null,null,null,0,null,0]
[null,null,null,null,null,0,null,0,null,null,null,0,null,0]
[null,null,null,null,null,0,null,0,null,null,null,0,null,0]
[null,null,null,null,null,0,null,0,null,null,null,0,null,0]
[null,null,null,null,null,0,null,0,null,null,null,0,null,0]
[null,null,null,null,null,0,null,0,null,null,null,0,null,0]
[null,null,null,null,null,0,null,0,null,null,null,0,null,0]
[null,null,null,null,null,0,null,0,null,null,null,0,null,0]
[null,null,null,null,null,0,null,0,null,null,null,0,null,0]
[null,null,null,null,null,0,null,0,null,null,null,0,null,0]
[null,null,null,null,null,0,null,0,null,null,null,0,null,0]
[null,null,null,null,null,0,null,0,null,null,null,0,null,0]
[null,null,null,null,null,0,null,0,null,null,null,0,null,0]
[null,null,null,null,null,0,null,0,null,null,null,0,null,0]
[null,null,null,null,null,0,null,0,null,null,null,0,null,0]
[null,null,null,null,null,0,null,0,null,null,null,0,null,0]
[null,null,null,null,null,0,null,0,null,null,null,0,null,0]
[null,null,null,null,null,0,null,0,null,null,null,0,null,0]
[null,null,null,null,null,0,null,0,null,null,null,0,null,0]
[null,null,null,null,null,0,null,0,null,null,null,0,null,0]
[null,null,null,null,null,0,null,0,null,null,null,0,null,0]
[null,null,null,null,null,0,null,0,null,null,null,0,null,0]
[null,null,null,null,null,0,null,0,null,null,null,0,null,0]
[null,null,null,null,null,0,null,0,null,null,null,0,null,0]
[null,null,null,null,null,0,null,0,null,null,null,0,null,0]
[null,null,null,null,null,0,null,0,null,null,null,0,null,0]
[null,null,null,null,null,0,null,0,null,null,null,0,null,0]
[null,null,null,null,null,0,null,0,null,null,null,0,null,0]
[null,null,null,null,null,0,null,0,null,null,null,0,null,0]
[null,null,null,null,null,0,null,0,null,null,null,0,null,0]
[null,null,null,null,null,0,null,0,null,null,null,0,null,0]
[null,null,null,null,null,0,null,0,null,null,null,0,null,0]
[null,null,null,null,null,0,null,0,null,null,null,0,null,0]
[null,null,null,null,null,0,null,0,null,null,null,0,null,0]
[null,null,null,null,null,0,null,0,null,null,null,0,null,0]
[null,null,null,null,null,0,null,0,null,null,null,0,null,0]
[null,null,null,null,null,0,null,0,null,null,null,0,null,0]
[null,null,null,null,null,0,null,0,null,null,null,0,null,0]
[null,null,null,null,null,0,null,0,null,null,null,0,null,0]
[null,null,null,null,null,0,null,0,null,null,null,0,null,0]
[null,null,null,null,null,0,null,0,null,null,null,0,null,0]
[null,null,null,null,null,0,null,0,null,null,null,0,null,0]
[null,null,null,null,null,0,null,0,null,null,null,0,null,0]
[null,null,null,null,null,0,null,0,null,null,null,0,null,0]
[null,null,null,null,null,0,null,0,null,null,null,0,null,0]
[null,null,null,null,null,0,null,0,null,null,null,0,null,0]
[null,null,null,null,null,0,null,0,null,null,null,0,null,0]
[null,null,null,null,null,0,null,0,null,null,null,0,null,0]
[null,null,null,null,null,0,null,0,null,null,null,0,null,0]
[null,null,null,null,null,0,null,0,null,null,null,0,null,0]
[null,null,null,null,null,0,null,0,null,null,null,0,null,0]
[null,null,null,null,null,0,null,0,null,null,null,0,null,0]
[null,null,null,null,null,0,null,0,null,null,null,0,null,0]
[null,null,null,null,null,0,null,0,null,null,null,0,null,0]
[null,null,null,null,null,0,null,0,null,null,null,0,null,0]
[null,null,null,null,null,0,null,0,null,null,null,0,null,0]
[null,null,null,null,null,0,null,0,null,null,null,0,null,0]
[null,null,null,null,null,{"$f":"SUM(D73*E73)","v":0},null,{"$f":"ROUND(F73*G73/100,2)","v":0},null,null,null,{"$f":"SUM(J73*K73)","v":0},null,{"$f":"ROUND(L73*M73/100,2)","v":0}]
[null,null,null,null,null,0,null,0,null,null,null,0,null,0]
[null,null,null,null,null,0,null,0,null,null,null,0,null,0]
[null,null,null,null,null,0,null,0,null,null,null,0,null,0]
[null,null,null,null,null,0,null,0,null,null,null,0,null,0]
[null,null,null,null,null,0,null,0,null,null,null,0,null,0]
[null,null,null,null,null,0,null,0,null,null,null,0,null,0]
[null,null,null,null,null,0,null,0,null,null,null,0,null,0]
[null,null,null,null,null,0,null,0,null,null,null,0,null,0]
[null,null,null,null,null,0,null,0,null,null,null,0,null,0]
[null,null,null,null,null,0,null,0,null,null,null,0,null,0]
[null,null,null,null,null,0,null,0,null,null,null,0,null,0]
[null,null,null,null,null,0,null,0,null,null,null,0,null,0]
[null,null,null,null,null,0,null,0,null,null,null,0,null,0]
[null,null,null,null,null,0,null,0,null,null,null,0,null,0]
[null,null,null,null,null,0,null,0,null,null,null,0,null,0]
[null,null,null,null,null,0,null,0,null,null,null,0,null,0]
[null,null,null,null,null,0,null,0,null,null,null,0,null,0]
[null,null,null,null,null,0,null,0,null,null,null,0,null,0]
[null,null,null,null,null,0,null,0,null,null,null,0,null,0]
[null,null,null,null,null,0,null,0,null,null,null,0,null,0]
[null,null,null,null,null,0,null,0,null,null,null,0,null,0]
[null,null,null,null,null,0,null,0,null,null,null,0,null,0]
[null,null,null,null,null,0,null,0,null,null,null,0,null,0]
[null,null,null,null,null,0,null,0,null,null,null,0,null,0]
[null,null,null,null,null,0,null,0,null,null,null,0,null,0]
[null,null,null,null,null,0,null,0,null,null,null,0,null,0]
[null,null,null,null,null,0,null,0,null,null,null,0,null,0]
[null,null,null,null,null,0,null,0,null,null,null,0,null,0]
[null,null,null,null,null,0,null,0,null,null,null,0,null,0]
[null,null,null,null,null,0,null,0,null,null,null,0,null,0]
[null,null,null,null,null,0,null,0,null,null,null,0,null,0]
[null,null,null,null,null,0,null,0,null,null,null,0,null,0]
[null,null,null,null,null,0,null,0,null,null,null,0,null,0]
[null,null,null,null,null,0,null,0,null,null,null,0,null,0]
[null,null,null,null,null,0,null,0,null,null,null,0,null,0]
[null,null,null,null,null,0,null,0,null,null,null,0,null,0]
[null,null,null,null,null,0,null,0,null,null,null,0,null,0]
[null,null,null,null,null,0,null,0,null,null,null,0,null,0]
[null,null,null,null,null,0,null,0,null,null,null,0,null,0]
[null,null,null,null,null,0,null,0,null,null,null,0,null,0]
[null,null,null,null,null,0,null,0,null,null,null,0,null,0]
[null,null,null,null,null,0,null,0,null,null,null,0,null,0]
[null,null,null,null,null,0,null,0,null,null,null,0,null,0]
[null,null,null,null,null,0,null,0,null,null,null,0,null,0]
[null,null,null,null,null,0,null,0,null,null,null,0,null,0]
[null,null,null,null,null,0,null,0,null,null,null,0,null,0]
[null,null,null,null,null,0,null,0,null,null,null,{"$f":"SUM(J120*K120)","v":0},null,0]

{"sheet":"4","index":4,"n_rows":120,"n_cols":15,"rows_kept":120,"cut":false,"hidden":false,"merged":[[4,1,5,1],[4,14,5,14],[0,13,0,14],[1,13,1,14]]}
[null,{"$f":"Zusammenstellung!D12","v":0},null,null,"Total Eingang",null,{"$f":"SUM(H7:H120)","v":0},"Liter 100%",null,null,null,null,null,"Kundennummer"]
[null,null,null,null,"Total Ausgang",null,{"$f":"SUM(N8:N120)","v":0},"Liter 100%",null,null,null,null,null,{"$f":"Zusammenstellung!I3","v":0}]
["Brennjahr",{"$f":"Zusammenstellung!I5","v":0},null,null,"Saldo",null,{"$f":"SUM(G1-G2)","v":0},"Liter 100%",null,null,null,null,null,{"$f":"Zusammenstellung!H4","v":0},{"$f":"Zusammenstellung!I4","v":0}]
[]
[null,"Eingang:  Erzeugung / Fabrikation \nAusgang: Name und Adresse des Käufers / Verwendung\n                  für Fabrikation / Degustation / Geschenke",null,null,null,"Eingang",null,null,null,null,null,"Ausgang",null,null,"Datum der Steuer-anmeldung"]
["Datum",null,null,"Anzahl\nFlaschen","Inhalt\nje Flasche","Liter ","Vol.%","Liter 100%",null,"Anzahl\nFlaschen","Inhalt\nje Flasche","Liter ","Vol.%","Liter 100%"]
[" ","Anfangsvorrat / Übertrag",null,null,null,{"$f":"SUM(D7*E7)","v":0},null,{"$f":"ROUND(F7*G7/100,2)","v":0}]
[null,null,null,null,null,{"$f":"SUM(D8*E8)","v":0},null,{"$f":"ROUND(F8*G8/100,2)","v":0},null,null,null,{"$f":"SUM(J8*K8)","v":0},null,{"$f":"ROUND(L8*M8/100,2)","v":0}]
[null,null,null,null,null,{"$f":"SUM(D9*E9)","v":0},null,{"$f":"ROUND(F9*G9/100,2)","v":0},null,null,null,{"$f":"SUM(J9*K9)","v":0},null,{"$f":"ROUND(L9*M9/100,2)","v":0}]
[null,null,null,null,null,0,null,0,null,null,null,0,null,0]
[null,null,null,null,null,0,null,0,null,null,null,0,null,0]
[null,null,null,null,null,0,null,0,null,null,null,0,null,0]
[null,null,null,null,null,0,null,0,null,null,null,0,null,0]
[null,null,null,null,null,0,null,0,null,null,null,0,null,0]
[null,null,null,null,null,0,null,0,null,null,null,0,null,0]
[null,null,null,null,null,0,null,0,null,null,null,0,null,0]
[null,null,null,null,null,0,null,0,null,null,null,0,null,0]
[null,null,null,null,null,0,null,0,null,null,null,0,null,0]
[null,null,null,null,null,0,null,0,null,null,null,0,null,0]
[null,null,null,null,null,0,null,0,null,null,null,0,null,0]
[null,null,null,null,null,0,null,0,null,null,null,0,null,0]
[null,null,null,null,null,0,null,0,null,null,null,0,null,0]
[null,null,null,null,null,0,null,0,null,null,null,0,null,0]
[null,null,null,null,null,0,null,0,null,null,null,0,null,0]
[null,null,null,null,null,0,null,0,null,null,null,0,null,0]
[null,null,null,null,null,0,null,0,null,null,null,0,null,0]
[null,null,null,null,null,0,null,0,null,null,null,0,null,0]
[null,null,null,null,null,0,null,0,null,null,null,0,null,0]
[null,null,null,null,null,0,null,0,null,null,null,0,null,0]
[null,null,null,null,null,0,null,0,null,null,null,0,null,0]
[null,null,null,null,null,0,null,0,null,null,null,0,null,0]
[null,null,null,null,null,0,null,0,null,null,null,0,null,0]
[null,null,null,null,null,0,null,0,null,null,null,0,null,0]
[null,null,null,null,null,0,null,0,null,null,null,0,null,0]
[null,null,null,null,null,0,null,0,null,null,null,0,null,0]
[null,null,null,null,null,0,null,0,null,null,null,0,null,0]
[null,null,null,null,null,0,null,0,null,null,null,0,null,0]
[null,null,null,null,null,0,null,0,null,null,null,0,null,0]
[null,null,null,null,null,0,null,0,null,null,null,0,null,0]
[null,null,null,null,null,0,null,0,null,null,null,0,null,0]
[null,null,null,null,null,0,null,0,null,null,null,0,null,0]
[null,null,null,null,null,0,null,0,null,null,null,0,null,0]
[null,null,null,null,null,0,null,0,null,null,null,0,null,0]
[null,null,null,null,null,0,null,0,null,null,null,0,null,0]
[null,null,null,null,null,0,null,0,null,null,null,0,null,0]
[null,null,null,null,null,0,null,0,null,null,null,0,null,0]
[null,null,null,null,null,0,null,0,null,null,null,0,null,0]
[null,null,null,null,null,0,null,0,null,null,null,0,null,0]
[null,null,null,null,null,0,null,0,null,null,null,0,null,0]
[null,null,null,null,null,0,null,0,null,null,null,0,null,0]
[null,null,null,null,null,0,null,0,null,null,null,0,null,0]
[null,null,null,null,null,0,null,0,null,null,null,0,null,0]
[null,null,null,null,null,0,null,0,null,null,null,0,null,0]
[null,null,null,null,null,0,null,0,null,null,null,0,null,0]
[null,null,null,null,null,0,null,0,null,null,null,0,null,0]
[null,null,null,null,null,0,null,0,null,null,null,0,null,0]
[null,null,null,null,null,0,null,0,null,null,null,0,null,0]
[null,null,null,null,null,0,null,0,null,null,null,0,null,0]
[null,null,null,null,null,0,null,0,null,null,null,0,null,0]
[null,null,null,null,null,0,null,0,null,null,null,0,null,0]
[null,null,null,null,null,0,null,0,null,null,null,0,null,0]
[null,null,null,null,null,0,null,0,null,null,null,0,null,0]
[null,null,null,null,null,0,null,0,null,null,null,0,null,0]
[null,null,null,null,null,0,null,0,null,null,null,0,null,0]
[null,null,null,null,null,0,null,0,null,null,null,0,null,0]
[null,null,null,null,null,0,null,0,null,null,null,0,null,0]
[null,null,null,null,null,0,null,0,null,null,null,0,null,0]
[null,null,null,null,null,0,null,0,null,null,null,0,null,0]
[null,null,null,null,null,0,null,0,null,null,null,0,null,0]
[null,null,null,null,null,0,null,0,null,null,null,0,null,0]
[null,null,null,null,null,0,null,0,null,null,null,0,null,0]
[null,null,null,null,null,0,null,0,null,null,null,0,null,0]
[null,null,null,null,null,{"$f":"SUM(D73*E73)","v":0},null,{"$f":"ROUND(F73*G73/100,2)","v":0},null,null,null,{"$f":"SUM(J73*K73)","v":0},null,{"$f":"ROUND(L73*M73/100,2)","v":0}]
[null,null,null,null,null,0,null,0,null,null,null,0,null,0]
[null,null,null,null,null,0,null,0,null,null,null,0,null,0]
[null,null,null,null,null,0,null,0,null,null,null,0,null,0]
[null,null,null,null,null,0,null,0,null,null,null,0,null,0]
[null,null,null,null,null,0,null,0,null,null,null,0,null,0]
[null,null,null,null,null,0,null,0,null,null,null,0,null,0]
[null,null,null,null,null,0,null,0,null,null,null,0,null,0]
[null,null,null,null,null,0,null,0,null,null,null,0,null,0]
[null,null,null,null,null,0,null,0,null,null,null,0,null,0]
[null,null,null,null,null,0,null,0,null,null,null,0,null,0]
[null,null,null,null,null,0,null,0,null,null,null,0,null,0]
[null,null,null,null,null,0,null,0,null,null,null,0,null,0]
[null,null,null,null,null,0,null,0,null,null,null,0,null,0]
[null,null,null,null,null,0,null,0,null,null,null,0,null,0]
[null,null,null,null,null,0,null,0,null,null,null,0,null,0]
[null,null,null,null,null,0,null,0,null,null,null,0,null,0]
[null,null,null,null,null,0,null,0,null,null,null,0,null,0]
[null,null,null,null,null,0,null,0,null,null,null,0,null,0]
[null,null,null,null,null,0,null,0,null,null,null,0,null,0]
[null,null,null,null,null,0,null,0,null,null,null,0,null,0]
[null,null,null,null,null,0,null,0,null,null,null,0,null,0]
[null,null,null,null,null,0,null,0,null,null,null,0,null,0]
[null,null,null,null,null,0,null,0,null,null,null,0,null,0]
[null,null,null,null,null,0,null,0,null,null,null,0,null,0]
[null,null,null,null,null,0,null,0,null,null,null,0,null,0]
[null,null,null,null,null,0,null,0,null,null,null,0,null,0]
[null,null,null,null,null,0,null,0,null,null,null,0,null,0]
[null,null,null,null,null,0,null,0,null,null,null,0,null,0]
[null,null,null,null,null,0,null,0,null,null,null,0,null,0]
[null,null,null,null,null,0,null,0,null,null,null,0,null,0]
[null,null,null,null,null,0,null,0,null,null,null,0,null,0]
[null,null,null,null,null,0,null,0,null,null,null,0,null,0]
[null,null,null,null,null,0,null,0,null,null,null,0,null,0]
[null,null,null,null,null,0,null,0,null,null,null,0,null,0]
[null,null,null,null,null,0,null,0,null,null,null,0,null,0]
[null,null,null,null,null,0,null,0,null,null,null,0,null,0]
[null,null,null,null,null,0,null,0,null,null,null,0,null,0]
[null,null,null,null,null,0,null,0,null,null,null,0,null,0]
[null,null,null,null,null,0,null,0,null,null,null,0,null,0]
[null,null,null,null,null,0,null,0,null,null,null,0,null,0]
[null,null,null,null,null,0,null,0,null,null,null,0,null,0]
[null,null,null,null,null,0,null,0,null,null,null,0,null,0]
[null,null,null,null,null,0,null,0,null,null,null,0,null,0]
[null,null,null,null,null,0,null,0,null,null,null,0,null,0]
[null,null,null,null,null,0,null,0,null,null,null,0,null,0]
[null,null,null,null,null,0,null,0,null,null,null,0,null,0]
[null,null,null,null,null,null,null,0,null,null,null,{"$f":"SUM(J120*K120)","v":0},null,0]

{"sheet":"5","index":5,"n_rows":120,"n_cols":15,"rows_kept":120,"cut":false,"hidden":false,"merged":[[4,1,5,1],[4,14,5,14],[0,13,0,14],[1,13,1,14]]}
[null,{"$f":"Zusammenstellung!D13","v":0},null,null,"Total Eingang",null,{"$f":"SUM(H7:H120)","v":0},"Liter 100%",null,null,null,null,null,"Kundennummer"]
[null,null,null,null,"Total Ausgang",null,{"$f":"SUM(N8:N120)","v":0},"Liter 100%",null,null,null,null,null,{"$f":"Zusammenstellung!I3","v":0}]
["Brennjahr",{"$f":"Zusammenstellung!I5","v":0},null,null,"Saldo",null,{"$f":"SUM(G1-G2)","v":0},"Liter 100%",null,null,null,null,null,{"$f":"Zusammenstellung!H4","v":0},{"$f":"Zusammenstellung!I4","v":0}]
[]
[null,"Eingang:  Erzeugung / Fabrikation \nAusgang: Name und Adresse des Käufers / Verwendung\n                  für Fabrikation / Degustation / Geschenke",null,null,null,"Eingang",null,null,null,null,null,"Ausgang",null,null,"Datum der Steuer-anmeldung"]
["Datum",null,null,"Anzahl\nFlaschen","Inhalt\nje Flasche","Liter ","Vol.%","Liter 100%",null,"Anzahl\nFlaschen","Inhalt\nje Flasche","Liter ","Vol.%","Liter 100%"]
[" ","Anfangsvorrat / Übertrag",null,null,null,{"$f":"SUM(D7*E7)","v":0},null,{"$f":"ROUND(F7*G7/100,2)","v":0}]
[null,null,null,null,null,{"$f":"SUM(D8*E8)","v":0},null,{"$f":"ROUND(F8*G8/100,2)","v":0},null,null,null,{"$f":"SUM(J8*K8)","v":0},null,{"$f":"ROUND(L8*M8/100,2)","v":0}]
[null,null,null,null,null,{"$f":"SUM(D9*E9)","v":0},null,{"$f":"ROUND(F9*G9/100,2)","v":0},null,null,null,{"$f":"SUM(J9*K9)","v":0},null,{"$f":"ROUND(L9*M9/100,2)","v":0}]
[null,null,null,null,null,0,null,0,null,null,null,0,null,0]
[null,null,null,null,null,0,null,0,null,null,null,0,null,0]
[null,null,null,null,null,0,null,0,null,null,null,0,null,0]
[null,null,null,null,null,0,null,0,null,null,null,0,null,0]
[null,null,null,null,null,0,null,0,null,null,null,0,null,0]
[null,null,null,null,null,0,null,0,null,null,null,0,null,0]
[null,null,null,null,null,0,null,0,null,null,null,0,null,0]
[null,null,null,null,null,0,null,0,null,null,null,0,null,0]
[null,null,null,null,null,0,null,0,null,null,null,0,null,0]
[null,null,null,null,null,0,null,0,null,null,null,0,null,0]
[null,null,null,null,null,0,null,0,null,null,null,0,null,0]
[null,null,null,null,null,0,null,0,null,null,null,0,null,0]
[null,null,null,null,null,0,null,0,null,null,null,0,null,0]
[null,null,null,null,null,0,null,0,null,null,null,0,null,0]
[null,null,null,null,null,0,null,0,null,null,null,0,null,0]
[null,null,null,null,null,0,null,0,null,null,null,0,null,0]
[null,null,null,null,null,0,null,0,null,null,null,0,null,0]
[null,null,null,null,null,0,null,0,null,null,null,0,null,0]
[null,null,null,null,null,0,null,0,null,null,null,0,null,0]
[null,null,null,null,null,0,null,0,null,null,null,0,null,0]
[null,null,null,null,null,0,null,0,null,null,null,0,null,0]
[null,null,null,null,null,0,null,0,null,null,null,0,null,0]
[null,null,null,null,null,0,null,0,null,null,null,0,null,0]
[null,null,null,null,null,0,null,0,null,null,null,0,null,0]
[null,null,null,null,null,0,null,0,null,null,null,0,null,0]
[null,null,null,null,null,0,null,0,null,null,null,0,null,0]
[null,null,null,null,null,0,null,0,null,null,null,0,null,0]
[null,null,null,null,null,0,null,0,null,null,null,0,null,0]
[null,null,null,null,null,0,null,0,null,null,null,0,null,0]
[null,null,null,null,null,0,null,0,null,null,null,0,null,0]
[null,null,null,null,null,0,null,0,null,null,null,0,null,0]
[null,null,null,null,null,0,null,0,null,null,null,0,null,0]
[null,null,null,null,null,0,null,0,null,null,null,0,null,0]
[null,null,null,null,null,0,null,0,null,null,null,0,null,0]
[null,null,null,null,null,0,null,0,null,null,null,0,null,0]
[null,null,null,null,null,0,null,0,null,null,null,0,null,0]
[null,null,null,null,null,0,null,0,null,null,null,0,null,0]
[null,null,null,null,null,0,null,0,null,null,null,0,null,0]
[null,null,null,null,null,0,null,0,null,null,null,0,null,0]
[null,null,null,null,null,0,null,0,null,null,null,0,null,0]
[null,null,null,null,null,0,null,0,null,null,null,0,null,0]
[null,null,null,null,null,0,null,0,null,null,null,0,null,0]
[null,null,null,null,null,0,null,0,null,null,null,0,null,0]
[null,null,null,null,null,0,null,0,null,null,null,0,null,0]
[null,null,null,null,null,0,null,0,null,null,null,0,null,0]
[null,null,null,null,null,0,null,0,null,null,null,0,null,0]
[null,null,null,null,null,0,null,0,null,null,null,0,null,0]
[null,null,null,null,null,0,null,0,null,null,null,0,null,0]
[null,null,null,null,null,0,null,0,null,null,null,0,null,0]
[null,null,null,null,null,0,null,0,null,null,null,0,null,0]
[null,null,null,null,null,0,null,0,null,null,null,0,null,0]
[null,null,null,null,null,0,null,0,null,null,null,0,null,0]
[null,null,null,null,null,0,null,0,null,null,null,0,null,0]
[null,null,null,null,null,0,null,0,null,null,null,0,null,0]
[null,null,null,null,null,0,null,0,null,null,null,0,null,0]
[null,null,null,null,null,0,null,0,null,null,null,0,null,0]
[null,null,null,null,null,0,null,0,null,null,null,0,null,0]
[null,null,null,null,null,0,null,0,null,null,null,0,null,0]
[null,null,null,null,null,0,null,0,null,null,null,0,null,0]
[null,null,null,null,null,0,null,0,null,null,null,0,null,0]
[null,null,null,null,null,0,null,0,null,null,null,0,null,0]
[null,null,null,null,null,0,null,0,null,null,null,0,null,0]
[null,null,null,null,null,0,null,0,null,null,null,0,null,0]
[null,null,null,null,null,{"$f":"SUM(D73*E73)","v":0},null,{"$f":"ROUND(F73*G73/100,2)","v":0},null,null,null,{"$f":"SUM(J73*K73)","v":0},null,{"$f":"ROUND(L73*M73/100,2)","v":0}]
[null,null,null,null,null,0,null,0,null,null,null,0,null,0]
[null,null,null,null,null,0,null,0,null,null,null,0,null,0]
[null,null,null,null,null,0,null,0,null,null,null,0,null,0]
[null,null,null,null,null,0,null,0,null,null,null,0,null,0]
[null,null,null,null,null,0,null,0,null,null,null,0,null,0]
[null,null,null,null,null,0,null,0,null,null,null,0,null,0]
[null,null,null,null,null,0,null,0,null,null,null,0,null,0]
[null,null,null,null,null,0,null,0,null,null,null,0,null,0]
[null,null,null,null,null,0,null,0,null,null,null,0,null,0]
[null,null,null,null,null,0,null,0,null,null,null,0,null,0]
[null,null,null,null,null,0,null,0,null,null,null,0,null,0]
[null,null,null,null,null,0,null,0,null,null,null,0,null,0]
[null,null,null,null,null,0,null,0,null,null,null,0,null,0]
[null,null,null,null,null,0,null,0,null,null,null,0,null,0]
[null,null,null,null,null,0,null,0,null,null,null,0,null,0]
[null,null,null,null,null,0,null,0,null,null,null,0,null,0]
[null,null,null,null,null,0,null,0,null,null,null,0,null,0]
[null,null,null,null,null,0,null,0,null,null,null,0,null,0]
[null,null,null,null,null,0,null,0,null,null,null,0,null,0]
[null,null,null,null,null,0,null,0,null,null,null,0,null,0]
[null,null,null,null,null,0,null,0,null,null,null,0,null,0]
[null,null,null,null,null,0,null,0,null,null,null,0,null,0]
[null,null,null,null,null,0,null,0,null,null,null,0,null,0]
[null,null,null,null,null,0,null,0,null,null,null,0,null,0]
[null,null,null,null,null,0,null,0,null,null,null,0,null,0]
[null,null,null,null,null,0,null,0,null,null,null,0,null,0]
[null,null,null,null,null,0,null,0,null,null,null,0,null,0]
[null,null,null,null,null,0,null,0,null,null,null,0,null,0]
[null,null,null,null,null,0,null,0,null,null,null,0,null,0]
[null,null,null,null,null,0,null,0,null,null,null,0,null,0]
[null,null,null,null,null,0,null,0,null,null,null,0,null,0]
[null,null,null,null,null,0,null,0,null,null,null,0,null,0]
[null,null,null,null,null,0,null,0,null,null,null,0,null,0]
[null,null,null,null,null,0,null,0,null,null,null,0,null,0]
[null,null,null,null,null,0,null,0,null,null,null,0,null,0]
[null,null,null,null,null,0,null,0,null,null,null,0,null,0]
[null,null,null,null,null,0,null,0,null,null,null,0,null,0]
[null,null,null,null,null,0,null,0,null,null,null,0,null,0]
[null,null,null,null,null,0,null,0,null,null,null,0,null,0]
[null,null,null,null,null,0,null,0,null,null,null,0,null,0]
[null,null,null,null,null,0,null,0,null,null,null,0,null,0]
[null,null,null,null,null,0,null,0,null,null,null,0,null,0]
[null,null,null,null,null,0,null,0,null,null,null,0,null,0]
[null,null,null,null,null,0,null,0,null,null,null,0,null,0]
[null,null,null,null,null,0,null,0,null,null,null,0,null,0]
[null,null,null,null,null,0,null,0,null,null,null,0,null,0]
[null,null,null,null,null,0,null,0,null,null,null,{"$f":"SUM(J120*K120)","v":0},null,0]

{"sheet":"6","index":6,"n_rows":120,"n_cols":15,"rows_kept":120,"cut":false,"hidden":false,"merged":[[4,1,5,1],[4,14,5,14],[0,13,0,14],[1,13,1,14]]}
[null,{"$f":"Zusammenstellung!D14","v":0},null,null,"Total Eingang",null,{"$f":"SUM(H7:H120)","v":0},"Liter 100%",null,null,null,null,null,"Kundennummer"]
[null,null,null,null,"Total Ausgang",null,{"$f":"SUM(N8:N120)","v":0},"Liter 100%",null,null,null,null,null,{"$f":"Zusammenstellung!I3","v":0}]
["Brennjahr",{"$f":"Zusammenstellung!I5","v":0},null,null,"Saldo",null,{"$f":"SUM(G1-G2)","v":0},"Liter 100%",null,null,null,null,null,{"$f":"Zusammenstellung!H4","v":0},{"$f":"Zusammenstellung!I4","v":0}]
[]
[null,"Eingang:  Erzeugung / Fabrikation \nAusgang: Name und Adresse des Käufers / Verwendung\n                  für Fabrikation / Degustation / Geschenke",null,null,null,"Eingang",null,null,null,null,null,"Ausgang",null,null,"Datum der Steuer-anmeldung"]
["Datum",null,null,"Anzahl\nFlaschen","Inhalt\nje Flasche","Liter ","Vol.%","Liter 100%",null,"Anzahl\nFlaschen","Inhalt\nje Flasche","Liter ","Vol.%","Liter 100%"]
[" ","Anfangsvorrat / Übertrag",null,null,null,{"$f":"SUM(D7*E7)","v":0},null,{"$f":"ROUND(F7*G7/100,2)","v":0}]
[null,null,null,null,null,{"$f":"SUM(D8*E8)","v":0},null,{"$f":"ROUND(F8*G8/100,2)","v":0},null,null,null,{"$f":"SUM(J8*K8)","v":0},null,{"$f":"ROUND(L8*M8/100,2)","v":0}]
[null,null,null,null,null,{"$f":"SUM(D9*E9)","v":0},null,{"$f":"ROUND(F9*G9/100,2)","v":0},null,null,null,{"$f":"SUM(J9*K9)","v":0},null,{"$f":"ROUND(L9*M9/100,2)","v":0}]
[null,null,null,null,null,0,null,0,null,null,null,0,null,0]
[null,null,null,null,null,0,null,0,null,null,null,0,null,0]
[null,null,null,null,null,0,null,0,null,null,null,0,null,0]
[null,null,null,null,null,0,null,0,null,null,null,0,null,0]
[null,null,null,null,null,0,null,0,null,null,null,0,null,0]
[null,null,null,null,null,0,null,0,null,null,null,0,null,0]
[null,null,null,null,null,0,null,0,null,null,null,0,null,0]
[null,null,null,null,null,0,null,0,null,null,null,0,null,0]
[null,null,null,null,null,0,null,0,null,null,null,0,null,0]
[null,null,null,null,null,0,null,0,null,null,null,0,null,0]
[null,null,null,null,null,0,null,0,null,null,null,0,null,0]
[null,null,null,null,null,0,null,0,null,null,null,0,null,0]
[null,null,null,null,null,0,null,0,null,null,null,0,null,0]
[null,null,null,null,null,0,null,0,null,null,null,0,null,0]
[null,null,null,null,null,0,null,0,null,null,null,0,null,0]
[null,null,null,null,null,0,null,0,null,null,null,0,null,0]
[null,null,null,null,null,0,null,0,null,null,null,0,null,0]
[null,null,null,null,null,0,null,0,null,null,null,0,null,0]
[null,null,null,null,null,0,null,0,null,null,null,0,null,0]
[null,null,null,null,null,0,null,0,null,null,null,0,null,0]
[null,null,null,null,null,0,null,0,null,null,null,0,null,0]
[null,null,null,null,null,0,null,0,null,null,null,0,null,0]
[null,null,null,null,null,0,null,0,null,null,null,0,null,0]
[null,null,null,null,null,0,null,0,null,null,null,0,null,0]
[null,null,null,null,null,0,null,0,null,null,null,0,null,0]
[null,null,null,null,null,0,null,0,null,null,null,0,null,0]
[null,null,null,null,null,0,null,0,null,null,null,0,null,0]
[null,null,null,null,null,0,null,0,null,null,null,0,null,0]
[null,null,null,null,null,0,null,0,null,null,null,0,null,0]
[null,null,null,null,null,0,null,0,null,null,null,0,null,0]
[null,null,null,null,null,0,null,0,null,null,null,0,null,0]
[null,null,null,null,null,0,null,0,null,null,null,0,null,0]
[null,null,null,null,null,0,null,0,null,null,null,0,null,0]
[null,null,null,null,null,0,null,0,null,null,null,0,null,0]
[null,null,null,null,null,0,null,0,null,null,null,0,null,0]
[null,null,null,null,null,0,null,0,null,null,null,0,null,0]
[null,null,null,null,null,0,null,0,null,null,null,0,null,0]
[null,null,null,null,null,0,null,0,null,null,null,0,null,0]
[null,null,null,null,null,0,null,0,null,null,null,0,null,0]
[null,null,null,null,null,0,null,0,null,null,null,0,null,0]
[null,null,null,null,null,0,null,0,null,null,null,0,null,0]
[null,null,null,null,null,0,null,0,null,null,null,0,null,0]
[null,null,null,null,null,0,null,0,null,null,null,0,null,0]
[null,null,null,null,null,0,null,0,null,null,null,0,null,0]
[null,null,null,null,null,0,null,0,null,null,null,0,null,0]
[null,null,null,null,null,0,null,0,null,null,null,0,null,0]
[null,null,null,null,null,0,null,0,null,null,null,0,null,0]
[null,null,null,null,null,0,null,0,null,null,null,0,null,0]
[null,null,null,null,null,0,null,0,null,null,null,0,null,0]
[null,null,null,null,null,0,null,0,null,null,null,0,null,0]
[null,null,null,null,null,0,null,0,null,null,null,0,null,0]
[null,null,null,null,null,0,null,0,null,null,null,0,null,0]
[null,null,null,null,null,0,null,0,null,null,null,0,null,0]
[null,null,null,null,null,0,null,0,null,null,null,0,null,0]
[null,null,null,null,null,0,null,0,null,null,null,0,null,0]
[null,null,null,null,null,0,null,0,null,null,null,0,null,0]
[null,null,null,null,null,0,null,0,null,null,null,0,null,0]
[null,null,null,null,null,0,null,0,null,null,null,0,null,0]
[null,null,null,null,null,0,null,0,null,null,null,0,null,0]
[null,null,null,null,null,0,null,0,null,null,null,0,null,0]
[null,null,null,null,null,0,null,0,null,null,null,0,null,0]
[null,null,null,null,null,0,null,0,null,null,null,0,null,0]
[null,null,null,null,null,0,null,0,null,null,null,0,null,0]
[null,null,null,null,null,{"$f":"SUM(D73*E73)","v":0},null,{"$f":"ROUND(F73*G73/100,2)","v":0},null,null,null,{"$f":"SUM(J73*K73)","v":0},null,{"$f":"ROUND(L73*M73/100,2)","v":0}]
[null,null,null,null,null,0,null,0,null,null,null,0,null,0]
[null,null,null,null,null,0,null,0,null,null,null,0,null,0]
[null,null,null,null,null,0,null,0,null,null,null,0,null,0]
[null,null,null,null,null,0,null,0,null,null,null,0,null,0]
[null,null,null,null,null,0,null,0,null,null,null,0,null,0]
[null,null,null,null,null,0,null,0,null,null,null,0,null,0]
[null,null,null,null,null,0,null,0,null,null,null,0,null,0]
[null,null,null,null,null,0,null,0,null,null,null,0,null,0]
[null,null,null,null,null,0,null,0,null,null,null,0,null,0]
[null,null,null,null,null,0,null,0,null,null,null,0,null,0]
[null,null,null,null,null,0,null,0,null,null,null,0,null,0]
[null,null,null,null,null,0,null,0,null,null,null,0,null,0]
[null,null,null,null,null,0,null,0,null,null,null,0,null,0]
[null,null,null,null,null,0,null,0,null,null,null,0,null,0]
[null,null,null,null,null,0,null,0,null,null,null,0,null,0]
[null,null,null,null,null,0,null,0,null,null,null,0,null,0]
[null,null,null,null,null,0,null,0,null,null,null,0,null,0]
[null,null,null,null,null,0,null,0,null,null,null,0,null,0]
[null,null,null,null,null,0,null,0,null,null,null,0,null,0]
[null,null,null,null,null,0,null,0,null,null,null,0,null,0]
[null,null,null,null,null,0,null,0,null,null,null,0,null,0]
[null,null,null,null,null,0,null,0,null,null,null,0,null,0]
[null,null,null,null,null,0,null,0,null,null,null,0,null,0]
[null,null,null,null,null,0,null,0,null,null,null,0,null,0]
[null,null,null,null,null,0,null,0,null,null,null,0,null,0]
[null,null,null,null,null,0,null,0,null,null,null,0,null,0]
[null,null,null,null,null,0,null,0,null,null,null,0,null,0]
[null,null,null,null,null,0,null,0,null,null,null,0,null,0]
[null,null,null,null,null,0,null,0,null,null,null,0,null,0]
[null,null,null,null,null,0,null,0,null,null,null,0,null,0]
[null,null,null,null,null,0,null,0,null,null,null,0,null,0]
[null,null,null,null,null,0,null,0,null,null,null,0,null,0]
[null,null,null,null,null,0,null,0,null,null,null,0,null,0]
[null,null,null,null,null,0,null,0,null,null,null,0,null,0]
[null,null,null,null,null,0,null,0,null,null,null,0,null,0]
[null,null,null,null,null,0,null,0,null,null,null,0,null,0]
[null,null,null,null,null,0,null,0,null,null,null,0,null,0]
[null,null,null,null,null,0,null,0,null,null,null,0,null,0]
[null,null,null,null,null,0,null,0,null,null,null,0,null,0]
[null,null,null,null,null,0,null,0,null,null,null,0,null,0]
[null,null,null,null,null,0,null,0,null,null,null,0,null,0]
[null,null,null,null,null,0,null,0,null,null,null,0,null,0]
[null,null,null,null,null,0,null,0,null,null,null,0,null,0]
[null,null,null,null,null,0,null,0,null,null,null,0,null,0]
[null,null,null,null,null,0,null,0,null,null,null,0,null,0]
[null,null,null,null,null,0,null,0,null,null,null,0,null,0]
[null,null,null,null,null,0,null,0,null,null,null,{"$f":"SUM(J120*K120)","v":0},null,0]

{"sheet":"7","index":7,"n_rows":120,"n_cols":15,"rows_kept":120,"cut":false,"hidden":false,"merged":[[4,1,5,1],[4,14,5,14],[0,13,0,14],[1,13,1,14]]}
[null,{"$f":"Zusammenstellung!D15","v":0},null,null,"Total Eingang",null,{"$f":"SUM(H7:H120)","v":0},"Liter 100%",null,null,null,null,null,"Kundennummer"]
[null,null,null,null,"Total Ausgang",null,{"$f":"SUM(N8:N120)","v":0},"Liter 100%",null,null,null,null,null,{"$f":"Zusammenstellung!I3","v":0}]
["Brennjahr",{"$f":"Zusammenstellung!I5","v":0},null,null,"Saldo",null,{"$f":"SUM(G1-G2)","v":0},"Liter 100%",null,null,null,null,null,{"$f":"Zusammenstellung!H4","v":0},{"$f":"Zusammenstellung!I4","v":0}]
[]
[null,"Eingang:  Erzeugung / Fabrikation \nAusgang: Name und Adresse des Käufers / Verwendung\n                  für Fabrikation / Degustation / Geschenke",null,null,null,"Eingang",null,null,null,null,null,"Ausgang",null,null,"Datum der Steuer-anmeldung"]
["Datum",null,null,"Anzahl\nFlaschen","Inhalt\nje Flasche","Liter ","Vol.%","Liter 100%",null,"Anzahl\nFlaschen","Inhalt\nje Flasche","Liter ","Vol.%","Liter 100%"]
[" ","Anfangsvorrat / Übertrag",null,null,null,{"$f":"SUM(D7*E7)","v":0},null,{"$f":"ROUND(F7*G7/100,2)","v":0}]
[null,null,null,null,null,{"$f":"SUM(D8*E8)","v":0},null,{"$f":"ROUND(F8*G8/100,2)","v":0},null,null,null,{"$f":"SUM(J8*K8)","v":0},null,{"$f":"ROUND(L8*M8/100,2)","v":0}]
[null,null,null,null,null,{"$f":"SUM(D9*E9)","v":0},null,{"$f":"ROUND(F9*G9/100,2)","v":0},null,null,null,{"$f":"SUM(J9*K9)","v":0},null,{"$f":"ROUND(L9*M9/100,2)","v":0}]
[null,null,null,null,null,0,null,0,null,null,null,0,null,0]
[null,null,null,null,null,0,null,0,null,null,null,0,null,0]
[null,null,null,null,null,0,null,0,null,null,null,0,null,0]
[null,null,null,null,null,0,null,0,null,null,null,0,null,0]
[null,null,null,null,null,0,null,0,null,null,null,0,null,0]
[null,null,null,null,null,0,null,0,null,null,null,0,null,0]
[null,null,null,null,null,0,null,0,null,null,null,0,null,0]
[null,null,null,null,null,0,null,0,null,null,null,0,null,0]
[null,null,null,null,null,0,null,0,null,null,null,0,null,0]
[null,null,null,null,null,0,null,0,null,null,null,0,null,0]
[null,null,null,null,null,0,null,0,null,null,null,0,null,0]
[null,null,null,null,null,0,null,0,null,null,null,0,null,0]
[null,null,null,null,null,0,null,0,null,null,null,0,null,0]
[null,null,null,null,null,0,null,0,null,null,null,0,null,0]
[null,null,null,null,null,0,null,0,null,null,null,0,null,0]
[null,null,null,null,null,0,null,0,null,null,null,0,null,0]
[null,null,null,null,null,0,null,0,null,null,null,0,null,0]
[null,null,null,null,null,0,null,0,null,null,null,0,null,0]
[null,null,null,null,null,0,null,0,null,null,null,0,null,0]
[null,null,null,null,null,0,null,0,null,null,null,0,null,0]
[null,null,null,null,null,0,null,0,null,null,null,0,null,0]
[null,null,null,null,null,0,null,0,null,null,null,0,null,0]
[null,null,null,null,null,0,null,0,null,null,null,0,null,0]
[null,null,null,null,null,0,null,0,null,null,null,0,null,0]
[null,null,null,null,null,0,null,0,null,null,null,0,null,0]
[null,null,null,null,null,0,null,0,null,null,null,0,null,0]
[null,null,null,null,null,0,null,0,null,null,null,0,null,0]
[null,null,null,null,null,0,null,0,null,null,null,0,null,0]
[null,null,null,null,null,0,null,0,null,null,null,0,null,0]
[null,null,null,null,null,0,null,0,null,null,null,0,null,0]
[null,null,null,null,null,0,null,0,null,null,null,0,null,0]
[null,null,null,null,null,0,null,0,null,null,null,0,null,0]
[null,null,null,null,null,0,null,0,null,null,null,0,null,0]
[null,null,null,null,null,0,null,0,null,null,null,0,null,0]
[null,null,null,null,null,0,null,0,null,null,null,0,null,0]
[null,null,null,null,null,0,null,0,null,null,null,0,null,0]
[null,null,null,null,null,0,null,0,null,null,null,0,null,0]
[null,null,null,null,null,0,null,0,null,null,null,0,null,0]
[null,null,null,null,null,0,null,0,null,null,null,0,null,0]
[null,null,null,null,null,0,null,0,null,null,null,0,null,0]
[null,null,null,null,null,0,null,0,null,null,null,0,null,0]
[null,null,null,null,null,0,null,0,null,null,null,0,null,0]
[null,null,null,null,null,0,null,0,null,null,null,0,null,0]
[null,null,null,null,null,0,null,0,null,null,null,0,null,0]
[null,null,null,null,null,0,null,0,null,null,null,0,null,0]
[null,null,null,null,null,0,null,0,null,null,null,0,null,0]
[null,null,null,null,null,0,null,0,null,null,null,0,null,0]
[null,null,null,null,null,0,null,0,null,null,null,0,null,0]
[null,null,null,null,null,0,null,0,null,null,null,0,null,0]
[null,null,null,null,null,0,null,0,null,null,null,0,null,0]
[null,null,null,null,null,0,null,0,null,null,null,0,null,0]
[null,null,null,null,null,0,null,0,null,null,null,0,null,0]
[null,null,null,null,null,0,null,0,null,null,null,0,null,0]
[null,null,null,null,null,0,null,0,null,null,null,0,null,0]
[null,null,null,null,null,0,null,0,null,null,null,0,null,0]
[null,null,null,null,null,0,null,0,null,null,null,0,null,0]
[null,null,null,null,null,0,null,0,null,null,null,0,null,0]
[null,null,null,null,null,0,null,0,null,null,null,0,null,0]
[null,null,null,null,null,0,null,0,null,null,null,0,null,0]
[null,null,null,null,null,0,null,0,null,null,null,0,null,0]
[null,null,null,null,null,0,null,0,null,null,null,0,null,0]
[null,null,null,null,null,0,null,0,null,null,null,0,null,0]
[null,null,null,null,null,0,null,0,null,null,null,0,null,0]
[null,null,null,null,null,{"$f":"SUM(D73*E73)","v":0},null,{"$f":"ROUND(F73*G73/100,2)","v":0},null,null,null,{"$f":"SUM(J73*K73)","v":0},null,{"$f":"ROUND(L73*M73/100,2)","v":0}]
[null,null,null,null,null,0,null,0,null,null,null,0,null,0]
[null,null,null,null,null,0,null,0,null,null,null,0,null,0]
[null,null,null,null,null,0,null,0,null,null,null,0,null,0]
[null,null,null,null,null,0,null,0,null,null,null,0,null,0]
[null,null,null,null,null,0,null,0,null,null,null,0,null,0]
[null,null,null,null,null,0,null,0,null,null,null,0,null,0]
[null,null,null,null,null,0,null,0,null,null,null,0,null,0]
[null,null,null,null,null,0,null,0,null,null,null,0,null,0]
[null,null,null,null,null,0,null,0,null,null,null,0,null,0]
[null,null,null,null,null,0,null,0,null,null,null,0,null,0]
[null,null,null,null,null,0,null,0,null,null,null,0,null,0]
[null,null,null,null,null,0,null,0,null,null,null,0,null,0]
[null,null,null,null,null,0,null,0,null,null,null,0,null,0]
[null,null,null,null,null,0,null,0,null,null,null,0,null,0]
[null,null,null,null,null,0,null,0,null,null,null,0,null,0]
[null,null,null,null,null,0,null,0,null,null,null,0,null,0]
[null,null,null,null,null,0,null,0,null,null,null,0,null,0]
[null,null,null,null,null,0,null,0,null,null,null,0,null,0]
[null,null,null,null,null,0,null,0,null,null,null,0,null,0]
[null,null,null,null,null,0,null,0,null,null,null,0,null,0]
[null,null,null,null,null,0,null,0,null,null,null,0,null,0]
[null,null,null,null,null,0,null,0,null,null,null,0,null,0]
[null,null,null,null,null,0,null,0,null,null,null,0,null,0]
[null,null,null,null,null,0,null,0,null,null,null,0,null,0]
[null,null,null,null,null,0,null,0,null,null,null,0,null,0]
[null,null,null,null,null,0,null,0,null,null,null,0,null,0]
[null,null,null,null,null,0,null,0,null,null,null,0,null,0]
[null,null,null,null,null,0,null,0,null,null,null,0,null,0]
[null,null,null,null,null,0,null,0,null,null,null,0,null,0]
[null,null,null,null,null,0,null,0,null,null,null,0,null,0]
[null,null,null,null,null,0,null,0,null,null,null,0,null,0]
[null,null,null,null,null,0,null,0,null,null,null,0,null,0]
[null,null,null,null,null,0,null,0,null,null,null,0,null,0]
[null,null,null,null,null,0,null,0,null,null,null,0,null,0]
[null,null,null,null,null,0,null,0,null,null,null,0,null,0]
[null,null,null,null,null,0,null,0,null,null,null,0,null,0]
[null,null,null,null,null,0,null,0,null,null,null,0,null,0]
[null,null,null,null,null,0,null,0,null,null,null,0,null,0]
[null,null,null,null,null,0,null,0,null,null,null,0,null,0]
[null,null,null,null,null,0,null,0,null,null,null,0,null,0]
[null,null,null,null,null,0,null,0,null,null,null,0,null,0]
[null,null,null,null,null,0,null,0,null,null,null,0,null,0]
[null,null,null,null,null,0,null,0,null,null,null,0,null,0]
[null,null,null,null,null,0,null,0,null,null,null,0,null,0]
[null,null,null,null,null,0,null,0,null,null,null,0,null,0]
[null,null,null,null,null,0,null,0,null,null,null,0,null,0]
[null,null,null,null,null,0,null,0,null,null,null,{"$f":"SUM(J120*K120)","v":0},null,0]

{"sheet":"8","index":8,"n_rows":120,"n_cols":15,"rows_kept":120,"cut":false,"hidden":false,"merged":[[4,1,5,1],[4,14,5,14],[0,13,0,14],[1,13,1,14]]}
[null,{"$f":"Zusammenstellung!D16","v":0},null,null,"Total Eingang",null,{"$f":"SUM(H7:H120)","v":0},"Liter 100%",null,null,null,null,null,"Kundennummer"]
[null,null,null,null,"Total Ausgang",null,{"$f":"SUM(N8:N120)","v":0},"Liter 100%",null,null,null,null,null,{"$f":"Zusammenstellung!I3","v":0}]
["Brennjahr",{"$f":"Zusammenstellung!I5","v":0},null,null,"Saldo",null,{"$f":"SUM(G1-G2)","v":0},"Liter 100%",null,null,null,null,null,{"$f":"Zusammenstellung!H4","v":0},{"$f":"Zusammenstellung!I4","v":0}]
[]
[null,"Eingang:  Erzeugung / Fabrikation \nAusgang: Name und Adresse des Käufers / Verwendung\n                  für Fabrikation / Degustation / Geschenke",null,null,null,"Eingang",null,null,null,null,null,"Ausgang",null,null,"Datum der Steuer-anmeldung"]
["Datum",null,null,"Anzahl\nFlaschen","Inhalt\nje Flasche","Liter ","Vol.%","Liter 100%",null,"Anzahl\nFlaschen","Inhalt\nje Flasche","Liter ","Vol.%","Liter 100%"]
[" ","Anfangsvorrat / Übertrag",null,null,null,{"$f":"SUM(D7*E7)","v":0},null,{"$f":"ROUND(F7*G7/100,2)","v":0}]
[null,null,null,null,null,{"$f":"SUM(D8*E8)","v":0},null,{"$f":"ROUND(F8*G8/100,2)","v":0},null,null,null,{"$f":"SUM(J8*K8)","v":0},null,{"$f":"ROUND(L8*M8/100,2)","v":0}]
[null,null,null,null,null,{"$f":"SUM(D9*E9)","v":0},null,{"$f":"ROUND(F9*G9/100,2)","v":0},null,null,null,{"$f":"SUM(J9*K9)","v":0},null,{"$f":"ROUND(L9*M9/100,2)","v":0}]
[null,null,null,null,null,0,null,0,null,null,null,0,null,0]
[null,null,null,null,null,0,null,0,null,null,null,0,null,0]
[null,null,null,null,null,0,null,0,null,null,null,0,null,0]
[null,null,null,null,null,0,null,0,null,null,null,0,null,0]
[null,null,null,null,null,0,null,0,null,null,null,0,null,0]
[null,null,null,null,null,0,null,0,null,null,null,0,null,0]
[null,null,null,null,null,0,null,0,null,null,null,0,null,0]
[null,null,null,null,null,0,null,0,null,null,null,0,null,0]
[null,null,null,null,null,0,null,0,null,null,null,0,null,0]
[null,null,null,null,null,0,null,0,null,null,null,0,null,0]
[null,null,null,null,null,0,null,0,null,null,null,0,null,0]
[null,null,null,null,null,0,null,0,null,null,null,0,null,0]
[null,null,null,null,null,0,null,0,null,null,null,0,null,0]
[null,null,null,null,null,0,null,0,null,null,null,0,null,0]
[null,null,null,null,null,0,null,0,null,null,null,0,null,0]
[null,null,null,null,null,0,null,0,null,null,null,0,null,0]
[null,null,null,null,null,0,null,0,null,null,null,0,null,0]
[null,null,null,null,null,0,null,0,null,null,null,0,null,0]
[null,null,null,null,null,0,null,0,null,null,null,0,null,0]
[null,null,null,null,null,0,null,0,null,null,null,0,null,0]
[null,null,null,null,null,0,null,0,null,null,null,0,null,0]
[null,null,null,null,null,0,null,0,null,null,null,0,null,0]
[null,null,null,null,null,0,null,0,null,null,null,0,null,0]
[null,null,null,null,null,0,null,0,null,null,null,0,null,0]
[null,null,null,null,null,0,null,0,null,null,null,0,null,0]
[null,null,null,null,null,0,null,0,null,null,null,0,null,0]
[null,null,null,null,null,0,null,0,null,null,null,0,null,0]
[null,null,null,null,null,0,null,0,null,null,null,0,null,0]
[null,null,null,null,null,0,null,0,null,null,null,0,null,0]
[null,null,null,null,null,0,null,0,null,null,null,0,null,0]
[null,null,null,null,null,0,null,0,null,null,null,0,null,0]
[null,null,null,null,null,0,null,0,null,null,null,0,null,0]
[null,null,null,null,null,0,null,0,null,null,null,0,null,0]
[null,null,null,null,null,0,null,0,null,null,null,0,null,0]
[null,null,null,null,null,0,null,0,null,null,null,0,null,0]
[null,null,null,null,null,0,null,0,null,null,null,0,null,0]
[null,null,null,null,null,0,null,0,null,null,null,0,null,0]
[null,null,null,null,null,0,null,0,null,null,null,0,null,0]
[null,null,null,null,null,0,null,0,null,null,null,0,null,0]
[null,null,null,null,null,0,null,0,null,null,null,0,null,0]
[null,null,null,null,null,0,null,0,null,null,null,0,null,0]
[null,null,null,null,null,0,null,0,null,null,null,0,null,0]
[null,null,null,null,null,0,null,0,null,null,null,0,null,0]
[null,null,null,null,null,0,null,0,null,null,null,0,null,0]
[null,null,null,null,null,0,null,0,null,null,null,0,null,0]
[null,null,null,null,null,0,null,0,null,null,null,0,null,0]
[null,null,null,null,null,0,null,0,null,null,null,0,null,0]
[null,null,null,null,null,0,null,0,null,null,null,0,null,0]
[null,null,null,null,null,0,null,0,null,null,null,0,null,0]
[null,null,null,null,null,0,null,0,null,null,null,0,null,0]
[null,null,null,null,null,0,null,0,null,null,null,0,null,0]
[null,null,null,null,null,0,null,0,null,null,null,0,null,0]
[null,null,null,null,null,0,null,0,null,null,null,0,null,0]
[null,null,null,null,null,0,null,0,null,null,null,0,null,0]
[null,null,null,null,null,0,null,0,null,null,null,0,null,0]
[null,null,null,null,null,0,null,0,null,null,null,0,null,0]
[null,null,null,null,null,0,null,0,null,null,null,0,null,0]
[null,null,null,null,null,0,null,0,null,null,null,0,null,0]
[null,null,null,null,null,0,null,0,null,null,null,0,null,0]
[null,null,null,null,null,0,null,0,null,null,null,0,null,0]
[null,null,null,null,null,0,null,0,null,null,null,0,null,0]
[null,null,null,null,null,0,null,0,null,null,null,0,null,0]
[null,null,null,null,null,0,null,0,null,null,null,0,null,0]
[null,null,null,null,null,{"$f":"SUM(D73*E73)","v":0},null,{"$f":"ROUND(F73*G73/100,2)","v":0},null,null,null,{"$f":"SUM(J73*K73)","v":0},null,{"$f":"ROUND(L73*M73/100,2)","v":0}]
[null,null,null,null,null,0,null,0,null,null,null,0,null,0]
[null,null,null,null,null,0,null,0,null,null,null,0,null,0]
[null,null,null,null,null,0,null,0,null,null,null,0,null,0]
[null,null,null,null,null,0,null,0,null,null,null,0,null,0]
[null,null,null,null,null,0,null,0,null,null,null,0,null,0]
[null,null,null,null,null,0,null,0,null,null,null,0,null,0]
[null,null,null,null,null,0,null,0,null,null,null,0,null,0]
[null,null,null,null,null,0,null,0,null,null,null,0,null,0]
[null,null,null,null,null,0,null,0,null,null,null,0,null,0]
[null,null,null,null,null,0,null,0,null,null,null,0,null,0]
[null,null,null,null,null,0,null,0,null,null,null,0,null,0]
[null,null,null,null,null,0,null,0,null,null,null,0,null,0]
[null,null,null,null,null,0,null,0,null,null,null,0,null,0]
[null,null,null,null,null,0,null,0,null,null,null,0,null,0]
[null,null,null,null,null,0,null,0,null,null,null,0,null,0]
[null,null,null,null,null,0,null,0,null,null,null,0,null,0]
[null,null,null,null,null,0,null,0,null,null,null,0,null,0]
[null,null,null,null,null,0,null,0,null,null,null,0,null,0]
[null,null,null,null,null,0,null,0,null,null,null,0,null,0]
[null,null,null,null,null,0,null,0,null,null,null,0,null,0]
[null,null,null,null,null,0,null,0,null,null,null,0,null,0]
[null,null,null,null,null,0,null,0,null,null,null,0,null,0]
[null,null,null,null,null,0,null,0,null,null,null,0,null,0]
[null,null,null,null,null,0,null,0,null,null,null,0,null,0]
[null,null,null,null,null,0,null,0,null,null,null,0,null,0]
[null,null,null,null,null,0,null,0,null,null,null,0,null,0]
[null,null,null,null,null,0,null,0,null,null,null,0,null,0]
[null,null,null,null,null,0,null,0,null,null,null,0,null,0]
[null,null,null,null,null,0,null,0,null,null,null,0,null,0]
[null,null,null,null,null,0,null,0,null,null,null,0,null,0]
[null,null,null,null,null,0,null,0,null,null,null,0,null,0]
[null,null,null,null,null,0,null,0,null,null,null,0,null,0]
[null,null,null,null,null,0,null,0,null,null,null,0,null,0]
[null,null,null,null,null,0,null,0,null,null,null,0,null,0]
[null,null,null,null,null,0,null,0,null,null,null,0,null,0]
[null,null,null,null,null,0,null,0,null,null,null,0,null,0]
[null,null,null,null,null,0,null,0,null,null,null,0,null,0]
[null,null,null,null,null,0,null,0,null,null,null,0,null,0]
[null,null,null,null,null,0,null,0,null,null,null,0,null,0]
[null,null,null,null,null,0,null,0,null,null,null,0,null,0]
[null,null,null,null,null,0,null,0,null,null,null,0,null,0]
[null,null,null,null,null,0,null,0,null,null,null,0,null,0]
[null,null,null,null,null,0,null,0,null,null,null,0,null,0]
[null,null,null,null,null,0,null,0,null,null,null,0,null,0]
[null,null,null,null,null,0,null,0,null,null,null,0,null,0]
[null,null,null,null,null,0,null,0,null,null,null,0,null,0]
[null,null,null,null,null,0,null,0,null,null,null,{"$f":"SUM(J120*K120)","v":0},null,0]

{"sheet":"9","index":9,"n_rows":120,"n_cols":15,"rows_kept":120,"cut":false,"hidden":false,"merged":[[4,1,5,1],[4,14,5,14],[0,13,0,14],[1,13,1,14]]}
[null,{"$f":"Zusammenstellung!D17","v":0},null,null,"Total Eingang",null,{"$f":"SUM(H7:H120)","v":0},"Liter 100%",null,null,null,null,null,"Kundennummer"]
[null,null,null,null,"Total Ausgang",null,{"$f":"SUM(N8:N120)","v":0},"Liter 100%",null,null,null,null,null,{"$f":"Zusammenstellung!I3","v":0}]
["Brennjahr",{"$f":"Zusammenstellung!I5","v":0},null,null,"Saldo",null,{"$f":"SUM(G1-G2)","v":0},"Liter 100%",null,null,null,null,null,{"$f":"Zusammenstellung!H4","v":0},{"$f":"Zusammenstellung!I4","v":0}]
[]
[null,"Eingang:  Erzeugung / Fabrikation \nAusgang: Name und Adresse des Käufers / Verwendung\n                  für Fabrikation / Degustation / Geschenke",null,null,null,"Eingang",null,null,null,null,null,"Ausgang",null,null,"Datum der Steuer-anmeldung"]
["Datum",null,null,"Anzahl\nFlaschen","Inhalt\nje Flasche","Liter ","Vol.%","Liter 100%",null,"Anzahl\nFlaschen","Inhalt\nje Flasche","Liter ","Vol.%","Liter 100%"]
[" ","Anfangsvorrat / Übertrag",null,null,null,{"$f":"SUM(D7*E7)","v":0},null,{"$f":"ROUND(F7*G7/100,2)","v":0}]
[null,null,null,null,null,{"$f":"SUM(D8*E8)","v":0},null,{"$f":"ROUND(F8*G8/100,2)","v":0},null,null,null,{"$f":"SUM(J8*K8)","v":0},null,{"$f":"ROUND(L8*M8/100,2)","v":0}]
[null,null,null,null,null,{"$f":"SUM(D9*E9)","v":0},null,{"$f":"ROUND(F9*G9/100,2)","v":0},null,null,null,{"$f":"SUM(J9*K9)","v":0},null,{"$f":"ROUND(L9*M9/100,2)","v":0}]
[null,null,null,null,null,0,null,0,null,null,null,0,null,0]
[null,null,null,null,null,0,null,0,null,null,null,0,null,0]
[null,null,null,null,null,0,null,0,null,null,null,0,null,0]
[null,null,null,null,null,0,null,0,null,null,null,0,null,0]
[null,null,null,null,null,0,null,0,null,null,null,0,null,0]
[null,null,null,null,null,0,null,0,null,null,null,0,null,0]
[null,null,null,null,null,0,null,0,null,null,null,0,null,0]
[null,null,null,null,null,0,null,0,null,null,null,0,null,0]
[null,null,null,null,null,0,null,0,null,null,null,0,null,0]
[null,null,null,null,null,0,null,0,null,null,null,0,null,0]
[null,null,null,null,null,0,null,0,null,null,null,0,null,0]
[null,null,null,null,null,0,null,0,null,null,null,0,null,0]
[null,null,null,null,null,0,null,0,null,null,null,0,null,0]
[null,null,null,null,null,0,null,0,null,null,null,0,null,0]
[null,null,null,null,null,0,null,0,null,null,null,0,null,0]
[null,null,null,null,null,0,null,0,null,null,null,0,null,0]
[null,null,null,null,null,0,null,0,null,null,null,0,null,0]
[null,null,null,null,null,0,null,0,null,null,null,0,null,0]
[null,null,null,null,null,0,null,0,null,null,null,0,null,0]
[null,null,null,null,null,0,null,0,null,null,null,0,null,0]
[null,null,null,null,null,0,null,0,null,null,null,0,null,0]
[null,null,null,null,null,0,null,0,null,null,null,0,null,0]
[null,null,null,null,null,0,null,0,null,null,null,0,null,0]
[null,null,null,null,null,0,null,0,null,null,null,0,null,0]
[null,null,null,null,null,0,null,0,null,null,null,0,null,0]
[null,null,null,null,null,0,null,0,null,null,null,0,null,0]
[null,null,null,null,null,0,null,0,null,null,null,0,null,0]
[null,null,null,null,null,0,null,0,null,null,null,0,null,0]
[null,null,null,null,null,0,null,0,null,null,null,0,null,0]
[null,null,null,null,null,0,null,0,null,null,null,0,null,0]
[null,null,null,null,null,0,null,0,null,null,null,0,null,0]
[null,null,null,null,null,0,null,0,null,null,null,0,null,0]
[null,null,null,null,null,0,null,0,null,null,null,0,null,0]
[null,null,null,null,null,0,null,0,null,null,null,0,null,0]
[null,null,null,null,null,0,null,0,null,null,null,0,null,0]
[null,null,null,null,null,0,null,0,null,null,null,0,null,0]
[null,null,null,null,null,0,null,0,null,null,null,0,null,0]
[null,null,null,null,null,0,null,0,null,null,null,0,null,0]
[null,null,null,null,null,0,null,0,null,null,null,0,null,0]
[null,null,null,null,null,0,null,0,null,null,null,0,null,0]
[null,null,null,null,null,0,null,0,null,null,null,0,null,0]
[null,null,null,null,null,0,null,0,null,null,null,0,null,0]
[null,null,null,null,null,0,null,0,null,null,null,0,null,0]
[null,null,null,null,null,0,null,0,null,null,null,0,null,0]
[null,null,null,null,null,0,null,0,null,null,null,0,null,0]
[null,null,null,null,null,0,null,0,null,null,null,0,null,0]
[null,null,null,null,null,0,null,0,null,null,null,0,null,0]
[null,null,null,null,null,0,null,0,null,null,null,0,null,0]
[null,null,null,null,null,0,null,0,null,null,null,0,null,0]
[null,null,null,null,null,0,null,0,null,null,null,0,null,0]
[null,null,null,null,null,0,null,0,null,null,null,0,null,0]
[null,null,null,null,null,0,null,0,null,null,null,0,null,0]
[null,null,null,null,null,0,null,0,null,null,null,0,null,0]
[null,null,null,null,null,0,null,0,null,null,null,0,null,0]
[null,null,null,null,null,0,null,0,null,null,null,0,null,0]
[null,null,null,null,null,0,null,0,null,null,null,0,null,0]
[null,null,null,null,null,0,null,0,null,null,null,0,null,0]
[null,null,null,null,null,0,null,0,null,null,null,0,null,0]
[null,null,null,null,null,0,null,0,null,null,null,0,null,0]
[null,null,null,null,null,0,null,0,null,null,null,0,null,0]
[null,null,null,null,null,0,null,0,null,null,null,0,null,0]
[null,null,null,null,null,0,null,0,null,null,null,0,null,0]
[null,null,null,null,null,0,null,0,null,null,null,0,null,0]
[null,null,null,null,null,{"$f":"SUM(D73*E73)","v":0},null,{"$f":"ROUND(F73*G73/100,2)","v":0},null,null,null,{"$f":"SUM(J73*K73)","v":0},null,{"$f":"ROUND(L73*M73/100,2)","v":0}]
[null,null,null,null,null,0,null,0,null,null,null,0,null,0]
[null,null,null,null,null,0,null,0,null,null,null,0,null,0]
[null,null,null,null,null,0,null,0,null,null,null,0,null,0]
[null,null,null,null,null,0,null,0,null,null,null,0,null,0]
[null,null,null,null,null,0,null,0,null,null,null,0,null,0]
[null,null,null,null,null,0,null,0,null,null,null,0,null,0]
[null,null,null,null,null,0,null,0,null,null,null,0,null,0]
[null,null,null,null,null,0,null,0,null,null,null,0,null,0]
[null,null,null,null,null,0,null,0,null,null,null,0,null,0]
[null,null,null,null,null,0,null,0,null,null,null,0,null,0]
[null,null,null,null,null,0,null,0,null,null,null,0,null,0]
[null,null,null,null,null,0,null,0,null,null,null,0,null,0]
[null,null,null,null,null,0,null,0,null,null,null,0,null,0]
[null,null,null,null,null,0,null,0,null,null,null,0,null,0]
[null,null,null,null,null,0,null,0,null,null,null,0,null,0]
[null,null,null,null,null,0,null,0,null,null,null,0,null,0]
[null,null,null,null,null,0,null,0,null,null,null,0,null,0]
[null,null,null,null,null,0,null,0,null,null,null,0,null,0]
[null,null,null,null,null,0,null,0,null,null,null,0,null,0]
[null,null,null,null,null,0,null,0,null,null,null,0,null,0]
[null,null,null,null,null,0,null,0,null,null,null,0,null,0]
[null,null,null,null,null,0,null,0,null,null,null,0,null,0]
[null,null,null,null,null,0,null,0,null,null,null,0,null,0]
[null,null,null,null,null,0,null,0,null,null,null,0,null,0]
[null,null,null,null,null,0,null,0,null,null,null,0,null,0]
[null,null,null,null,null,0,null,0,null,null,null,0,null,0]
[null,null,null,null,null,0,null,0,null,null,null,0,null,0]
[null,null,null,null,null,0,null,0,null,null,null,0,null,0]
[null,null,null,null,null,0,null,0,null,null,null,0,null,0]
[null,null,null,null,null,0,null,0,null,null,null,0,null,0]
[null,null,null,null,null,0,null,0,null,null,null,0,null,0]
[null,null,null,null,null,0,null,0,null,null,null,0,null,0]
[null,null,null,null,null,0,null,0,null,null,null,0,null,0]
[null,null,null,null,null,0,null,0,null,null,null,0,null,0]
[null,null,null,null,null,0,null,0,null,null,null,0,null,0]
[null,null,null,null,null,0,null,0,null,null,null,0,null,0]
[null,null,null,null,null,0,null,0,null,null,null,0,null,0]
[null,null,null,null,null,0,null,0,null,null,null,0,null,0]
[null,null,null,null,null,0,null,0,null,null,null,0,null,0]
[null,null,null,null,null,0,null,0,null,null,null,0,null,0]
[null,null,null,null,null,0,null,0,null,null,null,0,null,0]
[null,null,null,null,null,0,null,0,null,null,null,0,null,0]
[null,null,null,null,null,0,null,0,null,null,null,0,null,0]
[null,null,null,null,null,0,null,0,null,null,null,0,null,0]
[null,null,null,null,null,0,null,0,null,null,null,0,null,0]
[null,null,null,null,null,0,null,0,null,null,null,0,null,0]
[null,null,null,null,null,0,null,0,null,null,null,{"$f":"SUM(J120*K120)","v":0},null,0]

{"sheet":"10","index":10,"n_rows":120,"n_cols":15,"rows_kept":120,"cut":false,"hidden":false,"merged":[[4,1,5,1],[4,14,5,14],[0,13,0,14],[1,13,1,14]]}
[null,{"$f":"Zusammenstellung!D18","v":0},null,null,"Total Eingang",null,{"$f":"SUM(H7:H120)","v":0},"Liter 100%",null,null,null,null,null,"Kundennummer"]
[null,null,null,null,"Total Ausgang",null,{"$f":"SUM(N8:N120)","v":0},"Liter 100%",null,null,null,null,null,{"$f":"Zusammenstellung!I3","v":0}]
["Brennjahr",{"$f":"Zusammenstellung!I5","v":0},null,null,"Saldo",null,{"$f":"SUM(G1-G2)","v":0},"Liter 100%",null,null,null,null,null,{"$f":"Zusammenstellung!H4","v":0},{"$f":"Zusammenstellung!I4","v":0}]
[]
[null,"Eingang:  Erzeugung / Fabrikation \nAusgang: Name und Adresse des Käufers / Verwendung\n                  für Fabrikation / Degustation / Geschenke",null,null,null,"Eingang",null,null,null,null,null,"Ausgang",null,null,"Datum der Steuer-anmeldung"]
["Datum",null,null,"Anzahl\nFlaschen","Inhalt\nje Flasche","Liter ","Vol.%","Liter 100%",null,"Anzahl\nFlaschen","Inhalt\nje Flasche","Liter ","Vol.%","Liter 100%"]
[" ","Anfangsvorrat / Übertrag",null,null,null,{"$f":"SUM(D7*E7)","v":0},null,{"$f":"ROUND(F7*G7/100,2)","v":0}]
[null,null,null,null,null,{"$f":"SUM(D8*E8)","v":0},null,{"$f":"ROUND(F8*G8/100,2)","v":0},null,null,null,{"$f":"SUM(J8*K8)","v":0},null,{"$f":"ROUND(L8*M8/100,2)","v":0}]
[null,null,null,null,null,{"$f":"SUM(D9*E9)","v":0},null,{"$f":"ROUND(F9*G9/100,2)","v":0},null,null,null,{"$f":"SUM(J9*K9)","v":0},null,{"$f":"ROUND(L9*M9/100,2)","v":0}]
[null,null,null,null,null,0,null,0,null,null,null,0,null,0]
[null,null,null,null,null,0,null,0,null,null,null,0,null,0]
[null,null,null,null,null,0,null,0,null,null,null,0,null,0]
[null,null,null,null,null,0,null,0,null,null,null,0,null,0]
[null,null,null,null,null,0,null,0,null,null,null,0,null,0]
[null,null,null,null,null,0,null,0,null,null,null,0,null,0]
[null,null,null,null,null,0,null,0,null,null,null,0,null,0]
[null,null,null,null,null,0,null,0,null,null,null,0,null,0]
[null,null,null,null,null,0,null,0,null,null,null,0,null,0]
[null,null,null,null,null,0,null,0,null,null,null,0,null,0]
[null,null,null,null,null,0,null,0,null,null,null,0,null,0]
[null,null,null,null,null,0,null,0,null,null,null,0,null,0]
[null,null,null,null,null,0,null,0,null,null,null,0,null,0]
[null,null,null,null,null,0,null,0,null,null,null,0,null,0]
[null,null,null,null,null,0,null,0,null,null,null,0,null,0]
[null,null,null,null,null,0,null,0,null,null,null,0,null,0]
[null,null,null,null,null,0,null,0,null,null,null,0,null,0]
[null,null,null,null,null,0,null,0,null,null,null,0,null,0]
[null,null,null,null,null,0,null,0,null,null,null,0,null,0]
[null,null,null,null,null,0,null,0,null,null,null,0,null,0]
[null,null,null,null,null,0,null,0,null,null,null,0,null,0]
[null,null,null,null,null,0,null,0,null,null,null,0,null,0]
[null,null,null,null,null,0,null,0,null,null,null,0,null,0]
[null,null,null,null,null,0,null,0,null,null,null,0,null,0]
[null,null,null,null,null,0,null,0,null,null,null,0,null,0]
[null,null,null,null,null,0,null,0,null,null,null,0,null,0]
[null,null,null,null,null,0,null,0,null,null,null,0,null,0]
[null,null,null,null,null,0,null,0,null,null,null,0,null,0]
[null,null,null,null,null,0,null,0,null,null,null,0,null,0]
[null,null,null,null,null,0,null,0,null,null,null,0,null,0]
[null,null,null,null,null,0,null,0,null,null,null,0,null,0]
[null,null,null,null,null,0,null,0,null,null,null,0,null,0]
[null,null,null,null,null,0,null,0,null,null,null,0,null,0]
[null,null,null,null,null,0,null,0,null,null,null,0,null,0]
[null,null,null,null,null,0,null,0,null,null,null,0,null,0]
[null,null,null,null,null,0,null,0,null,null,null,0,null,0]
[null,null,null,null,null,0,null,0,null,null,null,0,null,0]
[null,null,null,null,null,0,null,0,null,null,null,0,null,0]
[null,null,null,null,null,0,null,0,null,null,null,0,null,0]
[null,null,null,null,null,0,null,0,null,null,null,0,null,0]
[null,null,null,null,null,0,null,0,null,null,null,0,null,0]
[null,null,null,null,null,0,null,0,null,null,null,0,null,0]
[null,null,null,null,null,0,null,0,null,null,null,0,null,0]
[null,null,null,null,null,0,null,0,null,null,null,0,null,0]
[null,null,null,null,null,0,null,0,null,null,null,0,null,0]
[null,null,null,null,null,0,null,0,null,null,null,0,null,0]
[null,null,null,null,null,0,null,0,null,null,null,0,null,0]
[null,null,null,null,null,0,null,0,null,null,null,0,null,0]
[null,null,null,null,null,0,null,0,null,null,null,0,null,0]
[null,null,null,null,null,0,null,0,null,null,null,0,null,0]
[null,null,null,null,null,0,null,0,null,null,null,0,null,0]
[null,null,null,null,null,0,null,0,null,null,null,0,null,0]
[null,null,null,null,null,0,null,0,null,null,null,0,null,0]
[null,null,null,null,null,0,null,0,null,null,null,0,null,0]
[null,null,null,null,null,0,null,0,null,null,null,0,null,0]
[null,null,null,null,null,0,null,0,null,null,null,0,null,0]
[null,null,null,null,null,0,null,0,null,null,null,0,null,0]
[null,null,null,null,null,0,null,0,null,null,null,0,null,0]
[null,null,null,null,null,0,null,0,null,null,null,0,null,0]
[null,null,null,null,null,0,null,0,null,null,null,0,null,0]
[null,null,null,null,null,0,null,0,null,null,null,0,null,0]
[null,null,null,null,null,0,null,0,null,null,null,0,null,0]
[null,null,null,null,null,0,null,0,null,null,null,0,null,0]
[null,null,null,null,null,{"$f":"SUM(D73*E73)","v":0},null,{"$f":"ROUND(F73*G73/100,2)","v":0},null,null,null,{"$f":"SUM(J73*K73)","v":0},null,{"$f":"ROUND(L73*M73/100,2)","v":0}]
[null,null,null,null,null,0,null,0,null,null,null,0,null,0]
[null,null,null,null,null,0,null,0,null,null,null,0,null,0]
[null,null,null,null,null,0,null,0,null,null,null,0,null,0]
[null,null,null,null,null,0,null,0,null,null,null,0,null,0]
[null,null,null,null,null,0,null,0,null,null,null,0,null,0]
[null,null,null,null,null,0,null,0,null,null,null,0,null,0]
[null,null,null,null,null,0,null,0,null,null,null,0,null,0]
[null,null,null,null,null,0,null,0,null,null,null,0,null,0]
[null,null,null,null,null,0,null,0,null,null,null,0,null,0]
[null,null,null,null,null,0,null,0,null,null,null,0,null,0]
[null,null,null,null,null,0,null,0,null,null,null,0,null,0]
[null,null,null,null,null,0,null,0,null,null,null,0,null,0]
[null,null,null,null,null,0,null,0,null,null,null,0,null,0]
[null,null,null,null,null,0,null,0,null,null,null,0,null,0]
[null,null,null,null,null,0,null,0,null,null,null,0,null,0]
[null,null,null,null,null,0,null,0,null,null,null,0,null,0]
[null,null,null,null,null,0,null,0,null,null,null,0,null,0]
[null,null,null,null,null,0,null,0,null,null,null,0,null,0]
[null,null,null,null,null,0,null,0,null,null,null,0,null,0]
[null,null,null,null,null,0,null,0,null,null,null,0,null,0]
[null,null,null,null,null,0,null,0,null,null,null,0,null,0]
[null,null,null,null,null,0,null,0,null,null,null,0,null,0]
[null,null,null,null,null,0,null,0,null,null,null,0,null,0]
[null,null,null,null,null,0,null,0,null,null,null,0,null,0]
[null,null,null,null,null,0,null,0,null,null,null,0,null,0]
[null,null,null,null,null,0,null,0,null,null,null,0,null,0]
[null,null,null,null,null,0,null,0,null,null,null,0,null,0]
[null,null,null,null,null,0,null,0,null,null,null,0,null,0]
[null,null,null,null,null,0,null,0,null,null,null,0,null,0]
[null,null,null,null,null,0,null,0,null,null,null,0,null,0]
[null,null,null,null,null,0,null,0,null,null,null,0,null,0]
[null,null,null,null,null,0,null,0,null,null,null,0,null,0]
[null,null,null,null,null,0,null,0,null,null,null,0,null,0]
[null,null,null,null,null,0,null,0,null,null,null,0,null,0]
[null,null,null,null,null,0,null,0,null,null,null,0,null,0]
[null,null,null,null,null,0,null,0,null,null,null,0,null,0]
[null,null,null,null,null,0,null,0,null,null,null,0,null,0]
[null,null,null,null,null,0,null,0,null,null,null,0,null,0]
[null,null,null,null,null,0,null,0,null,null,null,0,null,0]
[null,null,null,null,null,0,null,0,null,null,null,0,null,0]
[null,null,null,null,null,0,null,0,null,null,null,0,null,0]
[null,null,null,null,null,0,null,0,null,null,null,0,null,0]
[null,null,null,null,null,0,null,0,null,null,null,0,null,0]
[null,null,null,null,null,0,null,0,null,null,null,0,null,0]
[null,null,null,null,null,0,null,0,null,null,null,0,null,0]
[null,null,null,null,null,0,null,0,null,null,null,0,null,0]
[null,null,null,null,null,0,null,0,null,null,null,{"$f":"SUM(J120*K120)","v":0},null,0]

{"sheet":"11","index":11,"n_rows":120,"n_cols":15,"rows_kept":120,"cut":false,"hidden":false,"merged":[[4,1,5,1],[4,14,5,14],[0,13,0,14],[1,13,1,14]]}
[null,{"$f":"Zusammenstellung!D19","v":0},null,null,"Total Eingang",null,{"$f":"SUM(H7:H120)","v":0},"Liter 100%",null,null,null,null,null,"Kundennummer"]
[null,null,null,null,"Total Ausgang",null,{"$f":"SUM(N8:N120)","v":0},"Liter 100%",null,null,null,null,null,{"$f":"Zusammenstellung!I3","v":0}]
["Brennjahr",{"$f":"Zusammenstellung!I5","v":0},null,null,"Saldo",null,{"$f":"SUM(G1-G2)","v":0},"Liter 100%",null,null,null,null,null,{"$f":"Zusammenstellung!H4","v":0},{"$f":"Zusammenstellung!I4","v":0}]
[]
[null,"Eingang:  Erzeugung / Fabrikation \nAusgang: Name und Adresse des Käufers / Verwendung\n                  für Fabrikation / Degustation / Geschenke",null,null,null,"Eingang",null,null,null,null,null,"Ausgang",null,null,"Datum der Steuer-anmeldung"]
["Datum",null,null,"Anzahl\nFlaschen","Inhalt\nje Flasche","Liter ","Vol.%","Liter 100%",null,"Anzahl\nFlaschen","Inhalt\nje Flasche","Liter ","Vol.%","Liter 100%"]
[" ","Anfangsvorrat / Übertrag",null,null,null,{"$f":"SUM(D7*E7)","v":0},null,{"$f":"ROUND(F7*G7/100,2)","v":0}]
[null,null,null,null,null,{"$f":"SUM(D8*E8)","v":0},null,{"$f":"ROUND(F8*G8/100,2)","v":0},null,null,null,{"$f":"SUM(J8*K8)","v":0},null,{"$f":"ROUND(L8*M8/100,2)","v":0}]
[null,null,null,null,null,{"$f":"SUM(D9*E9)","v":0},null,{"$f":"ROUND(F9*G9/100,2)","v":0},null,null,null,{"$f":"SUM(J9*K9)","v":0},null,{"$f":"ROUND(L9*M9/100,2)","v":0}]
[null,null,null,null,null,0,null,0,null,null,null,0,null,0]
[null,null,null,null,null,0,null,0,null,null,null,0,null,0]
[null,null,null,null,null,0,null,0,null,null,null,0,null,0]
[null,null,null,null,null,0,null,0,null,null,null,0,null,0]
[null,null,null,null,null,0,null,0,null,null,null,0,null,0]
[null,null,null,null,null,0,null,0,null,null,null,0,null,0]
[null,null,null,null,null,0,null,0,null,null,null,0,null,0]
[null,null,null,null,null,0,null,0,null,null,null,0,null,0]
[null,null,null,null,null,0,null,0,null,null,null,0,null,0]
[null,null,null,null,null,0,null,0,null,null,null,0,null,0]
[null,null,null,null,null,0,null,0,null,null,null,0,null,0]
[null,null,null,null,null,0,null,0,null,null,null,0,null,0]
[null,null,null,null,null,0,null,0,null,null,null,0,null,0]
[null,null,null,null,null,0,null,0,null,null,null,0,null,0]
[null,null,null,null,null,0,null,0,null,null,null,0,null,0]
[null,null,null,null,null,0,null,0,null,null,null,0,null,0]
[null,null,null,null,null,0,null,0,null,null,null,0,null,0]
[null,null,null,null,null,0,null,0,null,null,null,0,null,0]
[null,null,null,null,null,0,null,0,null,null,null,0,null,0]
[null,null,null,null,null,0,null,0,null,null,null,0,null,0]
[null,null,null,null,null,0,null,0,null,null,null,0,null,0]
[null,null,null,null,null,0,null,0,null,null,null,0,null,0]
[null,null,null,null,null,0,null,0,null,null,null,0,null,0]
[null,null,null,null,null,0,null,0,null,null,null,0,null,0]
[null,null,null,null,null,0,null,0,null,null,null,0,null,0]
[null,null,null,null,null,0,null,0,null,null,null,0,null,0]
[null,null,null,null,null,0,null,0,null,null,null,0,null,0]
[null,null,null,null,null,0,null,0,null,null,null,0,null,0]
[null,null,null,null,null,0,null,0,null,null,null,0,null,0]
[null,null,null,null,null,0,null,0,null,null,null,0,null,0]
[null,null,null,null,null,0,null,0,null,null,null,0,null,0]
[null,null,null,null,null,0,null,0,null,null,null,0,null,0]
[null,null,null,null,null,0,null,0,null,null,null,0,null,0]
[null,null,null,null,null,0,null,0,null,null,null,0,null,0]
[null,null,null,null,null,0,null,0,null,null,null,0,null,0]
[null,null,null,null,null,0,null,0,null,null,null,0,null,0]
[null,null,null,null,null,0,null,0,null,null,null,0,null,0]
[null,null,null,null,null,0,null,0,null,null,null,0,null,0]
[null,null,null,null,null,0,null,0,null,null,null,0,null,0]
[null,null,null,null,null,0,null,0,null,null,null,0,null,0]
[null,null,null,null,null,0,null,0,null,null,null,0,null,0]
[null,null,null,null,null,0,null,0,null,null,null,0,null,0]
[null,null,null,null,null,0,null,0,null,null,null,0,null,0]
[null,null,null,null,null,0,null,0,null,null,null,0,null,0]
[null,null,null,null,null,0,null,0,null,null,null,0,null,0]
[null,null,null,null,null,0,null,0,null,null,null,0,null,0]
[null,null,null,null,null,0,null,0,null,null,null,0,null,0]
[null,null,null,null,null,0,null,0,null,null,null,0,null,0]
[null,null,null,null,null,0,null,0,null,null,null,0,null,0]
[null,null,null,null,null,0,null,0,null,null,null,0,null,0]
[null,null,null,null,null,0,null,0,null,null,null,0,null,0]
[null,null,null,null,null,0,null,0,null,null,null,0,null,0]
[null,null,null,null,null,0,null,0,null,null,null,0,null,0]
[null,null,null,null,null,0,null,0,null,null,null,0,null,0]
[null,null,null,null,null,0,null,0,null,null,null,0,null,0]
[null,null,null,null,null,0,null,0,null,null,null,0,null,0]
[null,null,null,null,null,0,null,0,null,null,null,0,null,0]
[null,null,null,null,null,0,null,0,null,null,null,0,null,0]
[null,null,null,null,null,0,null,0,null,null,null,0,null,0]
[null,null,null,null,null,0,null,0,null,null,null,0,null,0]
[null,null,null,null,null,0,null,0,null,null,null,0,null,0]
[null,null,null,null,null,0,null,0,null,null,null,0,null,0]
[null,null,null,null,null,0,null,0,null,null,null,0,null,0]
[null,null,null,null,null,{"$f":"SUM(D73*E73)","v":0},null,{"$f":"ROUND(F73*G73/100,2)","v":0},null,null,null,{"$f":"SUM(J73*K73)","v":0},null,{"$f":"ROUND(L73*M73/100,2)","v":0}]
[null,null,null,null,null,0,null,0,null,null,null,0,null,0]
[null,null,null,null,null,0,null,0,null,null,null,0,null,0]
[null,null,null,null,null,0,null,0,null,null,null,0,null,0]
[null,null,null,null,null,0,null,0,null,null,null,0,null,0]
[null,null,null,null,null,0,null,0,null,null,null,0,null,0]
[null,null,null,null,null,0,null,0,null,null,null,0,null,0]
[null,null,null,null,null,0,null,0,null,null,null,0,null,0]
[null,null,null,null,null,0,null,0,null,null,null,0,null,0]
[null,null,null,null,null,0,null,0,null,null,null,0,null,0]
[null,null,null,null,null,0,null,0,null,null,null,0,null,0]
[null,null,null,null,null,0,null,0,null,null,null,0,null,0]
[null,null,null,null,null,0,null,0,null,null,null,0,null,0]
[null,null,null,null,null,0,null,0,null,null,null,0,null,0]
[null,null,null,null,null,0,null,0,null,null,null,0,null,0]
[null,null,null,null,null,0,null,0,null,null,null,0,null,0]
[null,null,null,null,null,0,null,0,null,null,null,0,null,0]
[null,null,null,null,null,0,null,0,null,null,null,0,null,0]
[null,null,null,null,null,0,null,0,null,null,null,0,null,0]
[null,null,null,null,null,0,null,0,null,null,null,0,null,0]
[null,null,null,null,null,0,null,0,null,null,null,0,null,0]
[null,null,null,null,null,0,null,0,null,null,null,0,null,0]
[null,null,null,null,null,0,null,0,null,null,null,0,null,0]
[null,null,null,null,null,0,null,0,null,null,null,0,null,0]
[null,null,null,null,null,0,null,0,null,null,null,0,null,0]
[null,null,null,null,null,0,null,0,null,null,null,0,null,0]
[null,null,null,null,null,0,null,0,null,null,null,0,null,0]
[null,null,null,null,null,0,null,0,null,null,null,0,null,0]
[null,null,null,null,null,0,null,0,null,null,null,0,null,0]
[null,null,null,null,null,0,null,0,null,null,null,0,null,0]
[null,null,null,null,null,0,null,0,null,null,null,0,null,0]
[null,null,null,null,null,0,null,0,null,null,null,0,null,0]
[null,null,null,null,null,0,null,0,null,null,null,0,null,0]
[null,null,null,null,null,0,null,0,null,null,null,0,null,0]
[null,null,null,null,null,0,null,0,null,null,null,0,null,0]
[null,null,null,null,null,0,null,0,null,null,null,0,null,0]
[null,null,null,null,null,0,null,0,null,null,null,0,null,0]
[null,null,null,null,null,0,null,0,null,null,null,0,null,0]
[null,null,null,null,null,0,null,0,null,null,null,0,null,0]
[null,null,null,null,null,0,null,0,null,null,null,0,null,0]
[null,null,null,null,null,0,null,0,null,null,null,0,null,0]
[null,null,null,null,null,0,null,0,null,null,null,0,null,0]
[null,null,null,null,null,0,null,0,null,null,null,0,null,0]
[null,null,null,null,null,0,null,0,null,null,null,0,null,0]
[null,null,null,null,null,0,null,0,null,null,null,0,null,0]
[null,null,null,null,null,0,null,0,null,null,null,0,null,0]
[null,null,null,null,null,0,null,0,null,null,null,0,null,0]
[null,null,null,null,null,0,null,0,null,null,null,{"$f":"SUM(J120*K120)","v":0},null,0]

{"sheet":"12","index":12,"n_rows":120,"n_cols":15,"rows_kept":120,"cut":false,"hidden":false,"merged":[[4,1,5,1],[4,14,5,14],[0,13,0,14],[1,13,1,14]]}
[null,{"$f":"Zusammenstellung!D20","v":0},null,null,"Total Eingang",null,{"$f":"SUM(H7:H120)","v":0},"Liter 100%",null,null,null,null,null,"Kundennummer"]
[null,null,null,null,"Total Ausgang",null,{"$f":"SUM(N8:N120)","v":0},"Liter 100%",null,null,null,null,null,{"$f":"Zusammenstellung!I3","v":0}]
["Brennjahr",{"$f":"Zusammenstellung!I5","v":0},null,null,"Saldo",null,{"$f":"SUM(G1-G2)","v":0},"Liter 100%",null,null,null,null,null,{"$f":"Zusammenstellung!H4","v":0},{"$f":"Zusammenstellung!I4","v":0}]
[]
[null,"Eingang:  Erzeugung / Fabrikation \nAusgang: Name und Adresse des Käufers / Verwendung\n                  für Fabrikation / Degustation / Geschenke",null,null,null,"Eingang",null,null,null,null,null,"Ausgang",null,null,"Datum der Steuer-anmeldung"]
["Datum",null,null,"Anzahl\nFlaschen","Inhalt\nje Flasche","Liter ","Vol.%","Liter 100%",null,"Anzahl\nFlaschen","Inhalt\nje Flasche","Liter ","Vol.%","Liter 100%"]
[" ","Anfangsvorrat / Übertrag",null,null,null,{"$f":"SUM(D7*E7)","v":0},null,{"$f":"ROUND(F7*G7/100,2)","v":0}]
[null,null,null,null,null,{"$f":"SUM(D8*E8)","v":0},null,{"$f":"ROUND(F8*G8/100,2)","v":0},null,null,null,{"$f":"SUM(J8*K8)","v":0},null,{"$f":"ROUND(L8*M8/100,2)","v":0}]
[null,null,null,null,null,{"$f":"SUM(D9*E9)","v":0},null,{"$f":"ROUND(F9*G9/100,2)","v":0},null,null,null,{"$f":"SUM(J9*K9)","v":0},null,{"$f":"ROUND(L9*M9/100,2)","v":0}]
[null,null,null,null,null,0,null,0,null,null,null,0,null,0]
[null,null,null,null,null,0,null,0,null,null,null,0,null,0]
[null,null,null,null,null,0,null,0,null,null,null,0,null,0]
[null,null,null,null,null,0,null,0,null,null,null,0,null,0]
[null,null,null,null,null,0,null,0,null,null,null,0,null,0]
[null,null,null,null,null,0,null,0,null,null,null,0,null,0]
[null,null,null,null,null,0,null,0,null,null,null,0,null,0]
[null,null,null,null,null,0,null,0,null,null,null,0,null,0]
[null,null,null,null,null,0,null,0,null,null,null,0,null,0]
[null,null,null,null,null,0,null,0,null,null,null,0,null,0]
[null,null,null,null,null,0,null,0,null,null,null,0,null,0]
[null,null,null,null,null,0,null,0,null,null,null,0,null,0]
[null,null,null,null,null,0,null,0,null,null,null,0,null,0]
[null,null,null,null,null,0,null,0,null,null,null,0,null,0]
[null,null,null,null,null,0,null,0,null,null,null,0,null,0]
[null,null,null,null,null,0,null,0,null,null,null,0,null,0]
[null,null,null,null,null,0,null,0,null,null,null,0,null,0]
[null,null,null,null,null,0,null,0,null,null,null,0,null,0]
[null,null,null,null,null,0,null,0,null,null,null,0,null,0]
[null,null,null,null,null,0,null,0,null,null,null,0,null,0]
[null,null,null,null,null,0,null,0,null,null,null,0,null,0]
[null,null,null,null,null,0,null,0,null,null,null,0,null,0]
[null,null,null,null,null,0,null,0,null,null,null,0,null,0]
[null,null,null,null,null,0,null,0,null,null,null,0,null,0]
[null,null,null,null,null,0,null,0,null,null,null,0,null,0]
[null,null,null,null,null,0,null,0,null,null,null,0,null,0]
[null,null,null,null,null,0,null,0,null,null,null,0,null,0]
[null,null,null,null,null,0,null,0,null,null,null,0,null,0]
[null,null,null,null,null,0,null,0,null,null,null,0,null,0]
[null,null,null,null,null,0,null,0,null,null,null,0,null,0]
[null,null,null,null,null,0,null,0,null,null,null,0,null,0]
[null,null,null,null,null,0,null,0,null,null,null,0,null,0]
[null,null,null,null,null,0,null,0,null,null,null,0,null,0]
[null,null,null,null,null,0,null,0,null,null,null,0,null,0]
[null,null,null,null,null,0,null,0,null,null,null,0,null,0]
[null,null,null,null,null,0,null,0,null,null,null,0,null,0]
[null,null,null,null,null,0,null,0,null,null,null,0,null,0]
[null,null,null,null,null,0,null,0,null,null,null,0,null,0]
[null,null,null,null,null,0,null,0,null,null,null,0,null,0]
[null,null,null,null,null,0,null,0,null,null,null,0,null,0]
[null,null,null,null,null,0,null,0,null,null,null,0,null,0]
[null,null,null,null,null,0,null,0,null,null,null,0,null,0]
[null,null,null,null,null,0,null,0,null,null,null,0,null,0]
[null,null,null,null,null,0,null,0,null,null,null,0,null,0]
[null,null,null,null,null,0,null,0,null,null,null,0,null,0]
[null,null,null,null,null,0,null,0,null,null,null,0,null,0]
[null,null,null,null,null,0,null,0,null,null,null,0,null,0]
[null,null,null,null,null,0,null,0,null,null,null,0,null,0]
[null,null,null,null,null,0,null,0,null,null,null,0,null,0]
[null,null,null,null,null,0,null,0,null,null,null,0,null,0]
[null,null,null,null,null,0,null,0,null,null,null,0,null,0]
[null,null,null,null,null,0,null,0,null,null,null,0,null,0]
[null,null,null,null,null,0,null,0,null,null,null,0,null,0]
[null,null,null,null,null,0,null,0,null,null,null,0,null,0]
[null,null,null,null,null,0,null,0,null,null,null,0,null,0]
[null,null,null,null,null,0,null,0,null,null,null,0,null,0]
[null,null,null,null,null,0,null,0,null,null,null,0,null,0]
[null,null,null,null,null,0,null,0,null,null,null,0,null,0]
[null,null,null,null,null,0,null,0,null,null,null,0,null,0]
[null,null,null,null,null,0,null,0,null,null,null,0,null,0]
[null,null,null,null,null,0,null,0,null,null,null,0,null,0]
[null,null,null,null,null,0,null,0,null,null,null,0,null,0]
[null,null,null,null,null,0,null,0,null,null,null,0,null,0]
[null,null,null,null,null,{"$f":"SUM(D73*E73)","v":0},null,{"$f":"ROUND(F73*G73/100,2)","v":0},null,null,null,{"$f":"SUM(J73*K73)","v":0},null,{"$f":"ROUND(L73*M73/100,2)","v":0}]
[null,null,null,null,null,0,null,0,null,null,null,0,null,0]
[null,null,null,null,null,0,null,0,null,null,null,0,null,0]
[null,null,null,null,null,0,null,0,null,null,null,0,null,0]
[null,null,null,null,null,0,null,0,null,null,null,0,null,0]
[null,null,null,null,null,0,null,0,null,null,null,0,null,0]
[null,null,null,null,null,0,null,0,null,null,null,0,null,0]
[null,null,null,null,null,0,null,0,null,null,null,0,null,0]
[null,null,null,null,null,0,null,0,null,null,null,0,null,0]
[null,null,null,null,null,0,null,0,null,null,null,0,null,0]
[null,null,null,null,null,0,null,0,null,null,null,0,null,0]
[null,null,null,null,null,0,null,0,null,null,null,0,null,0]
[null,null,null,null,null,0,null,0,null,null,null,0,null,0]
[null,null,null,null,null,0,null,0,null,null,null,0,null,0]
[null,null,null,null,null,0,null,0,null,null,null,0,null,0]
[null,null,null,null,null,0,null,0,null,null,null,0,null,0]
[null,null,null,null,null,0,null,0,null,null,null,0,null,0]
[null,null,null,null,null,0,null,0,null,null,null,0,null,0]
[null,null,null,null,null,0,null,0,null,null,null,0,null,0]
[null,null,null,null,null,0,null,0,null,null,null,0,null,0]
[null,null,null,null,null,0,null,0,null,null,null,0,null,0]
[null,null,null,null,null,0,null,0,null,null,null,0,null,0]
[null,null,null,null,null,0,null,0,null,null,null,0,null,0]
[null,null,null,null,null,0,null,0,null,null,null,0,null,0]
[null,null,null,null,null,0,null,0,null,null,null,0,null,0]
[null,null,null,null,null,0,null,0,null,null,null,0,null,0]
[null,null,null,null,null,0,null,0,null,null,null,0,null,0]
[null,null,null,null,null,0,null,0,null,null,null,0,null,0]
[null,null,null,null,null,0,null,0,null,null,null,0,null,0]
[null,null,null,null,null,0,null,0,null,null,null,0,null,0]
[null,null,null,null,null,0,null,0,null,null,null,0,null,0]
[null,null,null,null,null,0,null,0,null,null,null,0,null,0]
[null,null,null,null,null,0,null,0,null,null,null,0,null,0]
[null,null,null,null,null,0,null,0,null,null,null,0,null,0]
[null,null,null,null,null,0,null,0,null,null,null,0,null,0]
[null,null,null,null,null,0,null,0,null,null,null,0,null,0]
[null,null,null,null,null,0,null,0,null,null,null,0,null,0]
[null,null,null,null,null,0,null,0,null,null,null,0,null,0]
[null,null,null,null,null,0,null,0,null,null,null,0,null,0]
[null,null,null,null,null,0,null,0,null,null,null,0,null,0]
[null,null,null,null,null,0,null,0,null,null,null,0,null,0]
[null,null,null,null,null,0,null,0,null,null,null,0,null,0]
[null,null,null,null,null,0,null,0,null,null,null,0,null,0]
[null,null,null,null,null,0,null,0,null,null,null,0,null,0]
[null,null,null,null,null,0,null,0,null,null,null,0,null,0]
[null,null,null,null,null,0,null,0,null,null,null,0,null,0]
[null,null,null,null,null,0,null,0,null,null,null,0,null,0]
[null,null,null,null,null,0,null,0,null,null,null,{"$f":"SUM(J120*K120)","v":0},null,0]

{"sheet":"13","index":13,"n_rows":120,"n_cols":15,"rows_kept":120,"cut":false,"hidden":false,"merged":[[4,1,5,1],[4,14,5,14],[0,13,0,14],[1,13,1,14]]}
[null,{"$f":"Zusammenstellung!D21","v":0},null,null,"Total Eingang",null,{"$f":"SUM(H7:H120)","v":0},"Liter 100%",null,null,null,null,null,"Kundennummer"]
[null,null,null,null,"Total Ausgang",null,{"$f":"SUM(N8:N120)","v":0},"Liter 100%",null,null,null,null,null,{"$f":"Zusammenstellung!I3","v":0}]
["Brennjahr",{"$f":"Zusammenstellung!I5","v":0},null,null,"Saldo",null,{"$f":"SUM(G1-G2)","v":0},"Liter 100%",null,null,null,null,null,{"$f":"Zusammenstellung!H4","v":0},{"$f":"Zusammenstellung!I4","v":0}]
[]
[null,"Eingang:  Erzeugung / Fabrikation \nAusgang: Name und Adresse des Käufers / Verwendung\n                  für Fabrikation / Degustation / Geschenke",null,null,null,"Eingang",null,null,null,null,null,"Ausgang",null,null,"Datum der Steuer-anmeldung"]
["Datum",null,null,"Anzahl\nFlaschen","Inhalt\nje Flasche","Liter ","Vol.%","Liter 100%",null,"Anzahl\nFlaschen","Inhalt\nje Flasche","Liter ","Vol.%","Liter 100%"]
[" ","Anfangsvorrat / Übertrag",null,null,null,{"$f":"SUM(D7*E7)","v":0},null,{"$f":"ROUND(F7*G7/100,2)","v":0}]
[null,null,null,null,null,{"$f":"SUM(D8*E8)","v":0},null,{"$f":"ROUND(F8*G8/100,2)","v":0},null,null,null,{"$f":"SUM(J8*K8)","v":0},null,{"$f":"ROUND(L8*M8/100,2)","v":0}]
[null,null,null,null,null,{"$f":"SUM(D9*E9)","v":0},null,{"$f":"ROUND(F9*G9/100,2)","v":0},null,null,null,{"$f":"SUM(J9*K9)","v":0},null,{"$f":"ROUND(L9*M9/100,2)","v":0}]
[null,null,null,null,null,0,null,0,null,null,null,0,null,0]
[null,null,null,null,null,0,null,0,null,null,null,0,null,0]
[null,null,null,null,null,0,null,0,null,null,null,0,null,0]
[null,null,null,null,null,0,null,0,null,null,null,0,null,0]
[null,null,null,null,null,0,null,0,null,null,null,0,null,0]
[null,null,null,null,null,0,null,0,null,null,null,0,null,0]
[null,null,null,null,null,0,null,0,null,null,null,0,null,0]
[null,null,null,null,null,0,null,0,null,null,null,0,null,0]
[null,null,null,null,null,0,null,0,null,null,null,0,null,0]
[null,null,null,null,null,0,null,0,null,null,null,0,null,0]
[null,null,null,null,null,0,null,0,null,null,null,0,null,0]
[null,null,null,null,null,0,null,0,null,null,null,0,null,0]
[null,null,null,null,null,0,null,0,null,null,null,0,null,0]
[null,null,null,null,null,0,null,0,null,null,null,0,null,0]
[null,null,null,null,null,0,null,0,null,null,null,0,null,0]
[null,null,null,null,null,0,null,0,null,null,null,0,null,0]
[null,null,null,null,null,0,null,0,null,null,null,0,null,0]
[null,null,null,null,null,0,null,0,null,null,null,0,null,0]
[null,null,null,null,null,0,null,0,null,null,null,0,null,0]
[null,null,null,null,null,0,null,0,null,null,null,0,null,0]
[null,null,null,null,null,0,null,0,null,null,null,0,null,0]
[null,null,null,null,null,0,null,0,null,null,null,0,null,0]
[null,null,null,null,null,0,null,0,null,null,null,0,null,0]
[null,null,null,null,null,0,null,0,null,null,null,0,null,0]
[null,null,null,null,null,0,null,0,null,null,null,0,null,0]
[null,null,null,null,null,0,null,0,null,null,null,0,null,0]
[null,null,null,null,null,0,null,0,null,null,null,0,null,0]
[null,null,null,null,null,0,null,0,null,null,null,0,null,0]
[null,null,null,null,null,0,null,0,null,null,null,0,null,0]
[null,null,null,null,null,0,null,0,null,null,null,0,null,0]
[null,null,null,null,null,0,null,0,null,null,null,0,null,0]
[null,null,null,null,null,0,null,0,null,null,null,0,null,0]
[null,null,null,null,null,0,null,0,null,null,null,0,null,0]
[null,null,null,null,null,0,null,0,null,null,null,0,null,0]
[null,null,null,null,null,0,null,0,null,null,null,0,null,0]
[null,null,null,null,null,0,null,0,null,null,null,0,null,0]
[null,null,null,null,null,0,null,0,null,null,null,0,null,0]
[null,null,null,null,null,0,null,0,null,null,null,0,null,0]
[null,null,null,null,null,0,null,0,null,null,null,0,null,0]
[null,null,null,null,null,0,null,0,null,null,null,0,null,0]
[null,null,null,null,null,0,null,0,null,null,null,0,null,0]
[null,null,null,null,null,0,null,0,null,null,null,0,null,0]
[null,null,null,null,null,0,null,0,null,null,null,0,null,0]
[null,null,null,null,null,0,null,0,null,null,null,0,null,0]
[null,null,null,null,null,0,null,0,null,null,null,0,null,0]
[null,null,null,null,null,0,null,0,null,null,null,0,null,0]
[null,null,null,null,null,0,null,0,null,null,null,0,null,0]
[null,null,null,null,null,0,null,0,null,null,null,0,null,0]
[null,null,null,null,null,0,null,0,null,null,null,0,null,0]
[null,null,null,null,null,0,null,0,null,null,null,0,null,0]
[null,null,null,null,null,0,null,0,null,null,null,0,null,0]
[null,null,null,null,null,0,null,0,null,null,null,0,null,0]
[null,null,null,null,null,0,null,0,null,null,null,0,null,0]
[null,null,null,null,null,0,null,0,null,null,null,0,null,0]
[null,null,null,null,null,0,null,0,null,null,null,0,null,0]
[null,null,null,null,null,0,null,0,null,null,null,0,null,0]
[null,null,null,null,null,0,null,0,null,null,null,0,null,0]
[null,null,null,null,null,0,null,0,null,null,null,0,null,0]
[null,null,null,null,null,0,null,0,null,null,null,0,null,0]
[null,null,null,null,null,0,null,0,null,null,null,0,null,0]
[null,null,null,null,null,0,null,0,null,null,null,0,null,0]
[null,null,null,null,null,0,null,0,null,null,null,0,null,0]
[null,null,null,null,null,0,null,0,null,null,null,0,null,0]
[null,null,null,null,null,{"$f":"SUM(D73*E73)","v":0},null,{"$f":"ROUND(F73*G73/100,2)","v":0},null,null,null,{"$f":"SUM(J73*K73)","v":0},null,{"$f":"ROUND(L73*M73/100,2)","v":0}]
[null,null,null,null,null,0,null,0,null,null,null,0,null,0]
[null,null,null,null,null,0,null,0,null,null,null,0,null,0]
[null,null,null,null,null,0,null,0,null,null,null,0,null,0]
[null,null,null,null,null,0,null,0,null,null,null,0,null,0]
[null,null,null,null,null,0,null,0,null,null,null,0,null,0]
[null,null,null,null,null,0,null,0,null,null,null,0,null,0]
[null,null,null,null,null,0,null,0,null,null,null,0,null,0]
[null,null,null,null,null,0,null,0,null,null,null,0,null,0]
[null,null,null,null,null,0,null,0,null,null,null,0,null,0]
[null,null,null,null,null,0,null,0,null,null,null,0,null,0]
[null,null,null,null,null,0,null,0,null,null,null,0,null,0]
[null,null,null,null,null,0,null,0,null,null,null,0,null,0]
[null,null,null,null,null,0,null,0,null,null,null,0,null,0]
[null,null,null,null,null,0,null,0,null,null,null,0,null,0]
[null,null,null,null,null,0,null,0,null,null,null,0,null,0]
[null,null,null,null,null,0,null,0,null,null,null,0,null,0]
[null,null,null,null,null,0,null,0,null,null,null,0,null,0]
[null,null,null,null,null,0,null,0,null,null,null,0,null,0]
[null,null,null,null,null,0,null,0,null,null,null,0,null,0]
[null,null,null,null,null,0,null,0,null,null,null,0,null,0]
[null,null,null,null,null,0,null,0,null,null,null,0,null,0]
[null,null,null,null,null,0,null,0,null,null,null,0,null,0]
[null,null,null,null,null,0,null,0,null,null,null,0,null,0]
[null,null,null,null,null,0,null,0,null,null,null,0,null,0]
[null,null,null,null,null,0,null,0,null,null,null,0,null,0]
[null,null,null,null,null,0,null,0,null,null,null,0,null,0]
[null,null,null,null,null,0,null,0,null,null,null,0,null,0]
[null,null,null,null,null,0,null,0,null,null,null,0,null,0]
[null,null,null,null,null,0,null,0,null,null,null,0,null,0]
[null,null,null,null,null,0,null,0,null,null,null,0,null,0]
[null,null,null,null,null,0,null,0,null,null,null,0,null,0]
[null,null,null,null,null,0,null,0,null,null,null,0,null,0]
[null,null,null,null,null,0,null,0,null,null,null,0,null,0]
[null,null,null,null,null,0,null,0,null,null,null,0,null,0]
[null,null,null,null,null,0,null,0,null,null,null,0,null,0]
[null,null,null,null,null,0,null,0,null,null,null,0,null,0]
[null,null,null,null,null,0,null,0,null,null,null,0,null,0]
[null,null,null,null,null,0,null,0,null,null,null,0,null,0]
[null,null,null,null,null,0,null,0,null,null,null,0,null,0]
[null,null,null,null,null,0,null,0,null,null,null,0,null,0]
[null,null,null,null,null,0,null,0,null,null,null,0,null,0]
[null,null,null,null,null,0,null,0,null,null,null,0,null,0]
[null,null,null,null,null,0,null,0,null,null,null,0,null,0]
[null,null,null,null,null,0,null,0,null,null,null,0,null,0]
[null,null,null,null,null,0,null,0,null,null,null,0,null,0]
[null,null,null,null,null,0,null,0,null,null,null,0,null,0]
[null,null,null,null,null,0,null,0,null,null,null,{"$f":"SUM(J120*K120)","v":0},null,0]

{"sheet":"14","index":14,"n_rows":120,"n_cols":15,"rows_kept":120,"cut":false,"hidden":false,"merged":[[4,1,5,1],[4,14,5,14],[0,13,0,14],[1,13,1,14]]}
[null,{"$f":"Zusammenstellung!D22","v":0},null,null,"Total Eingang",null,{"$f":"SUM(H7:H120)","v":0},"Liter 100%",null,null,null,null,null,"Kundennummer"]
[null,null,null,null,"Total Ausgang",null,{"$f":"SUM(N8:N120)","v":0},"Liter 100%",null,null,null,null,null,{"$f":"Zusammenstellung!I3","v":0}]
["Brennjahr",{"$f":"Zusammenstellung!I5","v":0},null,null,"Saldo",null,{"$f":"SUM(G1-G2)","v":0},"Liter 100%",null,null,null,null,null,{"$f":"Zusammenstellung!H4","v":0},{"$f":"Zusammenstellung!I4","v":0}]
[]
[null,"Eingang:  Erzeugung / Fabrikation \nAusgang: Name und Adresse des Käufers / Verwendung\n                  für Fabrikation / Degustation / Geschenke",null,null,null,"Eingang",null,null,null,null,null,"Ausgang",null,null,"Datum der Steuer-anmeldung"]
["Datum",null,null,"Anzahl\nFlaschen","Inhalt\nje Flasche","Liter ","Vol.%","Liter 100%",null,"Anzahl\nFlaschen","Inhalt\nje Flasche","Liter ","Vol.%","Liter 100%"]
[" ","Anfangsvorrat / Übertrag",null,null,null,{"$f":"SUM(D7*E7)","v":0},null,{"$f":"ROUND(F7*G7/100,2)","v":0}]
[null,null,null,null,null,{"$f":"SUM(D8*E8)","v":0},null,{"$f":"ROUND(F8*G8/100,2)","v":0},null,null,null,{"$f":"SUM(J8*K8)","v":0},null,{"$f":"ROUND(L8*M8/100,2)","v":0}]
[null,null,null,null,null,{"$f":"SUM(D9*E9)","v":0},null,{"$f":"ROUND(F9*G9/100,2)","v":0},null,null,null,{"$f":"SUM(J9*K9)","v":0},null,{"$f":"ROUND(L9*M9/100,2)","v":0}]
[null,null,null,null,null,0,null,0,null,null,null,0,null,0]
[null,null,null,null,null,0,null,0,null,null,null,0,null,0]
[null,null,null,null,null,0,null,0,null,null,null,0,null,0]
[null,null,null,null,null,0,null,0,null,null,null,0,null,0]
[null,null,null,null,null,0,null,0,null,null,null,0,null,0]
[null,null,null,null,null,0,null,0,null,null,null,0,null,0]
[null,null,null,null,null,0,null,0,null,null,null,0,null,0]
[null,null,null,null,null,0,null,0,null,null,null,0,null,0]
[null,null,null,null,null,0,null,0,null,null,null,0,null,0]
[null,null,null,null,null,0,null,0,null,null,null,0,null,0]
[null,null,null,null,null,0,null,0,null,null,null,0,null,0]
[null,null,null,null,null,0,null,0,null,null,null,0,null,0]
[null,null,null,null,null,0,null,0,null,null,null,0,null,0]
[null,null,null,null,null,0,null,0,null,null,null,0,null,0]
[null,null,null,null,null,0,null,0,null,null,null,0,null,0]
[null,null,null,null,null,0,null,0,null,null,null,0,null,0]
[null,null,null,null,null,0,null,0,null,null,null,0,null,0]
[null,null,null,null,null,0,null,0,null,null,null,0,null,0]
[null,null,null,null,null,0,null,0,null,null,null,0,null,0]
[null,null,null,null,null,0,null,0,null,null,null,0,null,0]
[null,null,null,null,null,0,null,0,null,null,null,0,null,0]
[null,null,null,null,null,0,null,0,null,null,null,0,null,0]
[null,null,null,null,null,0,null,0,null,null,null,0,null,0]
[null,null,null,null,null,0,null,0,null,null,null,0,null,0]
[null,null,null,null,null,0,null,0,null,null,null,0,null,0]
[null,null,null,null,null,0,null,0,null,null,null,0,null,0]
[null,null,null,null,null,0,null,0,null,null,null,0,null,0]
[null,null,null,null,null,0,null,0,null,null,null,0,null,0]
[null,null,null,null,null,0,null,0,null,null,null,0,null,0]
[null,null,null,null,null,0,null,0,null,null,null,0,null,0]
[null,null,null,null,null,0,null,0,null,null,null,0,null,0]
[null,null,null,null,null,0,null,0,null,null,null,0,null,0]
[null,null,null,null,null,0,null,0,null,null,null,0,null,0]
[null,null,null,null,null,0,null,0,null,null,null,0,null,0]
[null,null,null,null,null,0,null,0,null,null,null,0,null,0]
[null,null,null,null,null,0,null,0,null,null,null,0,null,0]
[null,null,null,null,null,0,null,0,null,null,null,0,null,0]
[null,null,null,null,null,0,null,0,null,null,null,0,null,0]
[null,null,null,null,null,0,null,0,null,null,null,0,null,0]
[null,null,null,null,null,0,null,0,null,null,null,0,null,0]
[null,null,null,null,null,0,null,0,null,null,null,0,null,0]
[null,null,null,null,null,0,null,0,null,null,null,0,null,0]
[null,null,null,null,null,0,null,0,null,null,null,0,null,0]
[null,null,null,null,null,0,null,0,null,null,null,0,null,0]
[null,null,null,null,null,0,null,0,null,null,null,0,null,0]
[null,null,null,null,null,0,null,0,null,null,null,0,null,0]
[null,null,null,null,null,0,null,0,null,null,null,0,null,0]
[null,null,null,null,null,0,null,0,null,null,null,0,null,0]
[null,null,null,null,null,0,null,0,null,null,null,0,null,0]
[null,null,null,null,null,0,null,0,null,null,null,0,null,0]
[null,null,null,null,null,0,null,0,null,null,null,0,null,0]
[null,null,null,null,null,0,null,0,null,null,null,0,null,0]
[null,null,null,null,null,0,null,0,null,null,null,0,null,0]
[null,null,null,null,null,0,null,0,null,null,null,0,null,0]
[null,null,null,null,null,0,null,0,null,null,null,0,null,0]
[null,null,null,null,null,0,null,0,null,null,null,0,null,0]
[null,null,null,null,null,0,null,0,null,null,null,0,null,0]
[null,null,null,null,null,0,null,0,null,null,null,0,null,0]
[null,null,null,null,null,0,null,0,null,null,null,0,null,0]
[null,null,null,null,null,0,null,0,null,null,null,0,null,0]
[null,null,null,null,null,0,null,0,null,null,null,0,null,0]
[null,null,null,null,null,0,null,0,null,null,null,0,null,0]
[null,null,null,null,null,0,null,0,null,null,null,0,null,0]
[null,null,null,null,null,{"$f":"SUM(D73*E73)","v":0},null,{"$f":"ROUND(F73*G73/100,2)","v":0},null,null,null,{"$f":"SUM(J73*K73)","v":0},null,{"$f":"ROUND(L73*M73/100,2)","v":0}]
[null,null,null,null,null,0,null,0,null,null,null,0,null,0]
[null,null,null,null,null,0,null,0,null,null,null,0,null,0]
[null,null,null,null,null,0,null,0,null,null,null,0,null,0]
[null,null,null,null,null,0,null,0,null,null,null,0,null,0]
[null,null,null,null,null,0,null,0,null,null,null,0,null,0]
[null,null,null,null,null,0,null,0,null,null,null,0,null,0]
[null,null,null,null,null,0,null,0,null,null,null,0,null,0]
[null,null,null,null,null,0,null,0,null,null,null,0,null,0]
[null,null,null,null,null,0,null,0,null,null,null,0,null,0]
[null,null,null,null,null,0,null,0,null,null,null,0,null,0]
[null,null,null,null,null,0,null,0,null,null,null,0,null,0]
[null,null,null,null,null,0,null,0,null,null,null,0,null,0]
[null,null,null,null,null,0,null,0,null,null,null,0,null,0]
[null,null,null,null,null,0,null,0,null,null,null,0,null,0]
[null,null,null,null,null,0,null,0,null,null,null,0,null,0]
[null,null,null,null,null,0,null,0,null,null,null,0,null,0]
[null,null,null,null,null,0,null,0,null,null,null,0,null,0]
[null,null,null,null,null,0,null,0,null,null,null,0,null,0]
[null,null,null,null,null,0,null,0,null,null,null,0,null,0]
[null,null,null,null,null,0,null,0,null,null,null,0,null,0]
[null,null,null,null,null,0,null,0,null,null,null,0,null,0]
[null,null,null,null,null,0,null,0,null,null,null,0,null,0]
[null,null,null,null,null,0,null,0,null,null,null,0,null,0]
[null,null,null,null,null,0,null,0,null,null,null,0,null,0]
[null,null,null,null,null,0,null,0,null,null,null,0,null,0]
[null,null,null,null,null,0,null,0,null,null,null,0,null,0]
[null,null,null,null,null,0,null,0,null,null,null,0,null,0]
[null,null,null,null,null,0,null,0,null,null,null,0,null,0]
[null,null,null,null,null,0,null,0,null,null,null,0,null,0]
[null,null,null,null,null,0,null,0,null,null,null,0,null,0]
[null,null,null,null,null,0,null,0,null,null,null,0,null,0]
[null,null,null,null,null,0,null,0,null,null,null,0,null,0]
[null,null,null,null,null,0,null,0,null,null,null,0,null,0]
[null,null,null,null,null,0,null,0,null,null,null,0,null,0]
[null,null,null,null,null,0,null,0,null,null,null,0,null,0]
[null,null,null,null,null,0,null,0,null,null,null,0,null,0]
[null,null,null,null,null,0,null,0,null,null,null,0,null,0]
[null,null,null,null,null,0,null,0,null,null,null,0,null,0]
[null,null,null,null,null,0,null,0,null,null,null,0,null,0]
[null,null,null,null,null,0,null,0,null,null,null,0,null,0]
[null,null,null,null,null,0,null,0,null,null,null,0,null,0]
[null,null,null,null,null,0,null,0,null,null,null,0,null,0]
[null,null,null,null,null,0,null,0,null,null,null,0,null,0]
[null,null,null,null,null,0,null,0,null,null,null,0,null,0]
[null,null,null,null,null,0,null,0,null,null,null,0,null,0]
[null,null,null,null,null,0,null,0,null,null,null,0,null,0]
[null,null,null,null,null,0,null,0,null,null,null,{"$f":"SUM(J120*K120)","v":0},null,0]

{"sheet":"15","index":15,"n_rows":120,"n_cols":15,"rows_kept":120,"cut":false,"hidden":false,"merged":[[4,1,5,1],[4,14,5,14],[0,13,0,14],[1,13,1,14]]}
[null,{"$f":"Zusammenstellung!D23","v":0},null,null,"Total Eingang",null,{"$f":"SUM(H7:H120)","v":0},"Liter 100%",null,null,null,null,null,"Kundennummer"]
[null,null,null,null,"Total Ausgang",null,{"$f":"SUM(N8:N120)","v":0},"Liter 100%",null,null,null,null,null,{"$f":"Zusammenstellung!I3","v":0}]
["Brennjahr",{"$f":"Zusammenstellung!I5","v":0},null,null,"Saldo",null,{"$f":"SUM(G1-G2)","v":0},"Liter 100%",null,null,null,null,null,{"$f":"Zusammenstellung!H4","v":0},{"$f":"Zusammenstellung!I4","v":0}]
[]
[null,"Eingang:  Erzeugung / Fabrikation \nAusgang: Name und Adresse des Käufers / Verwendung\n                  für Fabrikation / Degustation / Geschenke",null,null,null,"Eingang",null,null,null,null,null,"Ausgang",null,null,"Datum der Steuer-anmeldung"]
["Datum",null,null,"Anzahl\nFlaschen","Inhalt\nje Flasche","Liter ","Vol.%","Liter 100%",null,"Anzahl\nFlaschen","Inhalt\nje Flasche","Liter ","Vol.%","Liter 100%"]
[" ","Anfangsvorrat / Übertrag",null,null,null,{"$f":"SUM(D7*E7)","v":0},null,{"$f":"ROUND(F7*G7/100,2)","v":0}]
[null,null,null,null,null,{"$f":"SUM(D8*E8)","v":0},null,{"$f":"ROUND(F8*G8/100,2)","v":0},null,null,null,{"$f":"SUM(J8*K8)","v":0},null,{"$f":"ROUND(L8*M8/100,2)","v":0}]
[null,null,null,null,null,{"$f":"SUM(D9*E9)","v":0},null,{"$f":"ROUND(F9*G9/100,2)","v":0},null,null,null,{"$f":"SUM(J9*K9)","v":0},null,{"$f":"ROUND(L9*M9/100,2)","v":0}]
[null,null,null,null,null,0,null,0,null,null,null,0,null,0]
[null,null,null,null,null,0,null,0,null,null,null,0,null,0]
[null,null,null,null,null,0,null,0,null,null,null,0,null,0]
[null,null,null,null,null,0,null,0,null,null,null,0,null,0]
[null,null,null,null,null,0,null,0,null,null,null,0,null,0]
[null,null,null,null,null,0,null,0,null,null,null,0,null,0]
[null,null,null,null,null,0,null,0,null,null,null,0,null,0]
[null,null,null,null,null,0,null,0,null,null,null,0,null,0]
[null,null,null,null,null,0,null,0,null,null,null,0,null,0]
[null,null,null,null,null,0,null,0,null,null,null,0,null,0]
[null,null,null,null,null,0,null,0,null,null,null,0,null,0]
[null,null,null,null,null,0,null,0,null,null,null,0,null,0]
[null,null,null,null,null,0,null,0,null,null,null,0,null,0]
[null,null,null,null,null,0,null,0,null,null,null,0,null,0]
[null,null,null,null,null,0,null,0,null,null,null,0,null,0]
[null,null,null,null,null,0,null,0,null,null,null,0,null,0]
[null,null,null,null,null,0,null,0,null,null,null,0,null,0]
[null,null,null,null,null,0,null,0,null,null,null,0,null,0]
[null,null,null,null,null,0,null,0,null,null,null,0,null,0]
[null,null,null,null,null,0,null,0,null,null,null,0,null,0]
[null,null,null,null,null,0,null,0,null,null,null,0,null,0]
[null,null,null,null,null,0,null,0,null,null,null,0,null,0]
[null,null,null,null,null,0,null,0,null,null,null,0,null,0]
[null,null,null,null,null,0,null,0,null,null,null,0,null,0]
[null,null,null,null,null,0,null,0,null,null,null,0,null,0]
[null,null,null,null,null,0,null,0,null,null,null,0,null,0]
[null,null,null,null,null,0,null,0,null,null,null,0,null,0]
[null,null,null,null,null,0,null,0,null,null,null,0,null,0]
[null,null,null,null,null,0,null,0,null,null,null,0,null,0]
[null,null,null,null,null,0,null,0,null,null,null,0,null,0]
[null,null,null,null,null,0,null,0,null,null,null,0,null,0]
[null,null,null,null,null,0,null,0,null,null,null,0,null,0]
[null,null,null,null,null,0,null,0,null,null,null,0,null,0]
[null,null,null,null,null,0,null,0,null,null,null,0,null,0]
[null,null,null,null,null,0,null,0,null,null,null,0,null,0]
[null,null,null,null,null,0,null,0,null,null,null,0,null,0]
[null,null,null,null,null,0,null,0,null,null,null,0,null,0]
[null,null,null,null,null,0,null,0,null,null,null,0,null,0]
[null,null,null,null,null,0,null,0,null,null,null,0,null,0]
[null,null,null,null,null,0,null,0,null,null,null,0,null,0]
[null,null,null,null,null,0,null,0,null,null,null,0,null,0]
[null,null,null,null,null,0,null,0,null,null,null,0,null,0]
[null,null,null,null,null,0,null,0,null,null,null,0,null,0]
[null,null,null,null,null,0,null,0,null,null,null,0,null,0]
[null,null,null,null,null,0,null,0,null,null,null,0,null,0]
[null,null,null,null,null,0,null,0,null,null,null,0,null,0]
[null,null,null,null,null,0,null,0,null,null,null,0,null,0]
[null,null,null,null,null,0,null,0,null,null,null,0,null,0]
[null,null,null,null,null,0,null,0,null,null,null,0,null,0]
[null,null,null,null,null,0,null,0,null,null,null,0,null,0]
[null,null,null,null,null,0,null,0,null,null,null,0,null,0]
[null,null,null,null,null,0,null,0,null,null,null,0,null,0]
[null,null,null,null,null,0,null,0,null,null,null,0,null,0]
[null,null,null,null,null,0,null,0,null,null,null,0,null,0]
[null,null,null,null,null,0,null,0,null,null,null,0,null,0]
[null,null,null,null,null,0,null,0,null,null,null,0,null,0]
[null,null,null,null,null,0,null,0,null,null,null,0,null,0]
[null,null,null,null,null,0,null,0,null,null,null,0,null,0]
[null,null,null,null,null,0,null,0,null,null,null,0,null,0]
[null,null,null,null,null,0,null,0,null,null,null,0,null,0]
[null,null,null,null,null,0,null,0,null,null,null,0,null,0]
[null,null,null,null,null,0,null,0,null,null,null,0,null,0]
[null,null,null,null,null,0,null,0,null,null,null,0,null,0]
[null,null,null,null,null,{"$f":"SUM(D73*E73)","v":0},null,{"$f":"ROUND(F73*G73/100,2)","v":0},null,null,null,{"$f":"SUM(J73*K73)","v":0},null,{"$f":"ROUND(L73*M73/100,2)","v":0}]
[null,null,null,null,null,0,null,0,null,null,null,0,null,0]
[null,null,null,null,null,0,null,0,null,null,null,0,null,0]
[null,null,null,null,null,0,null,0,null,null,null,0,null,0]
[null,null,null,null,null,0,null,0,null,null,null,0,null,0]
[null,null,null,null,null,0,null,0,null,null,null,0,null,0]
[null,null,null,null,null,0,null,0,null,null,null,0,null,0]
[null,null,null,null,null,0,null,0,null,null,null,0,null,0]
[null,null,null,null,null,0,null,0,null,null,null,0,null,0]
[null,null,null,null,null,0,null,0,null,null,null,0,null,0]
[null,null,null,null,null,0,null,0,null,null,null,0,null,0]
[null,null,null,null,null,0,null,0,null,null,null,0,null,0]
[null,null,null,null,null,0,null,0,null,null,null,0,null,0]
[null,null,null,null,null,0,null,0,null,null,null,0,null,0]
[null,null,null,null,null,0,null,0,null,null,null,0,null,0]
[null,null,null,null,null,0,null,0,null,null,null,0,null,0]
[null,null,null,null,null,0,null,0,null,null,null,0,null,0]
[null,null,null,null,null,0,null,0,null,null,null,0,null,0]
[null,null,null,null,null,0,null,0,null,null,null,0,null,0]
[null,null,null,null,null,0,null,0,null,null,null,0,null,0]
[null,null,null,null,null,0,null,0,null,null,null,0,null,0]
[null,null,null,null,null,0,null,0,null,null,null,0,null,0]
[null,null,null,null,null,0,null,0,null,null,null,0,null,0]
[null,null,null,null,null,0,null,0,null,null,null,0,null,0]
[null,null,null,null,null,0,null,0,null,null,null,0,null,0]
[null,null,null,null,null,0,null,0,null,null,null,0,null,0]
[null,null,null,null,null,0,null,0,null,null,null,0,null,0]
[null,null,null,null,null,0,null,0,null,null,null,0,null,0]
[null,null,null,null,null,0,null,0,null,null,null,0,null,0]
[null,null,null,null,null,0,null,0,null,null,null,0,null,0]
[null,null,null,null,null,0,null,0,null,null,null,0,null,0]
[null,null,null,null,null,0,null,0,null,null,null,0,null,0]
[null,null,null,null,null,0,null,0,null,null,null,0,null,0]
[null,null,null,null,null,0,null,0,null,null,null,0,null,0]
[null,null,null,null,null,0,null,0,null,null,null,0,null,0]
[null,null,null,null,null,0,null,0,null,null,null,0,null,0]
[null,null,null,null,null,0,null,0,null,null,null,0,null,0]
[null,null,null,null,null,0,null,0,null,null,null,0,null,0]
[null,null,null,null,null,0,null,0,null,null,null,0,null,0]
[null,null,null,null,null,0,null,0,null,null,null,0,null,0]
[null,null,null,null,null,0,null,0,null,null,null,0,null,0]
[null,null,null,null,null,0,null,0,null,null,null,0,null,0]
[null,null,null,null,null,0,null,0,null,null,null,0,null,0]
[null,null,null,null,null,0,null,0,null,null,null,0,null,0]
[null,null,null,null,null,0,null,0,null,null,null,0,null,0]
[null,null,null,null,null,0,null,0,null,null,null,0,null,0]
[null,null,null,null,null,0,null,0,null,null,null,0,null,0]
[null,null,null,null,null,0,null,0,null,null,null,{"$f":"SUM(J120*K120)","v":0},null,0]

{"sheet":"16","index":16,"n_rows":120,"n_cols":15,"rows_kept":120,"cut":false,"hidden":false,"merged":[[4,1,5,1],[4,14,5,14],[0,13,0,14],[1,13,1,14]]}
[null,{"$f":"Zusammenstellung!D24","v":0},null,null,"Total Eingang",null,{"$f":"SUM(H7:H120)","v":0},"Liter 100%",null,null,null,null,null,"Kundennummer"]
[null,null,null,null,"Total Ausgang",null,{"$f":"SUM(N8:N120)","v":0},"Liter 100%",null,null,null,null,null,{"$f":"Zusammenstellung!I3","v":0}]
["Brennjahr",{"$f":"Zusammenstellung!I5","v":0},null,null,"Saldo",null,{"$f":"SUM(G1-G2)","v":0},"Liter 100%",null,null,null,null,null,{"$f":"Zusammenstellung!H4","v":0},{"$f":"Zusammenstellung!I4","v":0}]
[]
[null,"Eingang:  Erzeugung / Fabrikation \nAusgang: Name und Adresse des Käufers / Verwendung\n                  für Fabrikation / Degustation / Geschenke",null,null,null,"Eingang",null,null,null,null,null,"Ausgang",null,null,"Datum der Steuer-anmeldung"]
["Datum",null,null,"Anzahl\nFlaschen","Inhalt\nje Flasche","Liter ","Vol.%","Liter 100%",null,"Anzahl\nFlaschen","Inhalt\nje Flasche","Liter ","Vol.%","Liter 100%"]
[" ","Anfangsvorrat / Übertrag",null,null,null,{"$f":"SUM(D7*E7)","v":0},null,{"$f":"ROUND(F7*G7/100,2)","v":0}]
[null,null,null,null,null,{"$f":"SUM(D8*E8)","v":0},null,{"$f":"ROUND(F8*G8/100,2)","v":0},null,null,null,{"$f":"SUM(J8*K8)","v":0},null,{"$f":"ROUND(L8*M8/100,2)","v":0}]
[null,null,null,null,null,{"$f":"SUM(D9*E9)","v":0},null,{"$f":"ROUND(F9*G9/100,2)","v":0},null,null,null,{"$f":"SUM(J9*K9)","v":0},null,{"$f":"ROUND(L9*M9/100,2)","v":0}]
[null,null,null,null,null,0,null,0,null,null,null,0,null,0]
[null,null,null,null,null,0,null,0,null,null,null,0,null,0]
[null,null,null,null,null,0,null,0,null,null,null,0,null,0]
[null,null,null,null,null,0,null,0,null,null,null,0,null,0]
[null,null,null,null,null,0,null,0,null,null,null,0,null,0]
[null,null,null,null,null,0,null,0,null,null,null,0,null,0]
[null,null,null,null,null,0,null,0,null,null,null,0,null,0]
[null,null,null,null,null,0,null,0,null,null,null,0,null,0]
[null,null,null,null,null,0,null,0,null,null,null,0,null,0]
[null,null,null,null,null,0,null,0,null,null,null,0,null,0]
[null,null,null,null,null,0,null,0,null,null,null,0,null,0]
[null,null,null,null,null,0,null,0,null,null,null,0,null,0]
[null,null,null,null,null,0,null,0,null,null,null,0,null,0]
[null,null,null,null,null,0,null,0,null,null,null,0,null,0]
[null,null,null,null,null,0,null,0,null,null,null,0,null,0]
[null,null,null,null,null,0,null,0,null,null,null,0,null,0]
[null,null,null,null,null,0,null,0,null,null,null,0,null,0]
[null,null,null,null,null,0,null,0,null,null,null,0,null,0]
[null,null,null,null,null,0,null,0,null,null,null,0,null,0]
[null,null,null,null,null,0,null,0,null,null,null,0,null,0]
[null,null,null,null,null,0,null,0,null,null,null,0,null,0]
[null,null,null,null,null,0,null,0,null,null,null,0,null,0]
[null,null,null,null,null,0,null,0,null,null,null,0,null,0]
[null,null,null,null,null,0,null,0,null,null,null,0,null,0]
[null,null,null,null,null,0,null,0,null,null,null,0,null,0]
[null,null,null,null,null,0,null,0,null,null,null,0,null,0]
[null,null,null,null,null,0,null,0,null,null,null,0,null,0]
[null,null,null,null,null,0,null,0,null,null,null,0,null,0]
[null,null,null,null,null,0,null,0,null,null,null,0,null,0]
[null,null,null,null,null,0,null,0,null,null,null,0,null,0]
[null,null,null,null,null,0,null,0,null,null,null,0,null,0]
[null,null,null,null,null,0,null,0,null,null,null,0,null,0]
[null,null,null,null,null,0,null,0,null,null,null,0,null,0]
[null,null,null,null,null,0,null,0,null,null,null,0,null,0]
[null,null,null,null,null,0,null,0,null,null,null,0,null,0]
[null,null,null,null,null,0,null,0,null,null,null,0,null,0]
[null,null,null,null,null,0,null,0,null,null,null,0,null,0]
[null,null,null,null,null,0,null,0,null,null,null,0,null,0]
[null,null,null,null,null,0,null,0,null,null,null,0,null,0]
[null,null,null,null,null,0,null,0,null,null,null,0,null,0]
[null,null,null,null,null,0,null,0,null,null,null,0,null,0]
[null,null,null,null,null,0,null,0,null,null,null,0,null,0]
[null,null,null,null,null,0,null,0,null,null,null,0,null,0]
[null,null,null,null,null,0,null,0,null,null,null,0,null,0]
[null,null,null,null,null,0,null,0,null,null,null,0,null,0]
[null,null,null,null,null,0,null,0,null,null,null,0,null,0]
[null,null,null,null,null,0,null,0,null,null,null,0,null,0]
[null,null,null,null,null,0,null,0,null,null,null,0,null,0]
[null,null,null,null,null,0,null,0,null,null,null,0,null,0]
[null,null,null,null,null,0,null,0,null,null,null,0,null,0]
[null,null,null,null,null,0,null,0,null,null,null,0,null,0]
[null,null,null,null,null,0,null,0,null,null,null,0,null,0]
[null,null,null,null,null,0,null,0,null,null,null,0,null,0]
[null,null,null,null,null,0,null,0,null,null,null,0,null,0]
[null,null,null,null,null,0,null,0,null,null,null,0,null,0]
[null,null,null,null,null,0,null,0,null,null,null,0,null,0]
[null,null,null,null,null,0,null,0,null,null,null,0,null,0]
[null,null,null,null,null,0,null,0,null,null,null,0,null,0]
[null,null,null,null,null,0,null,0,null,null,null,0,null,0]
[null,null,null,null,null,0,null,0,null,null,null,0,null,0]
[null,null,null,null,null,0,null,0,null,null,null,0,null,0]
[null,null,null,null,null,0,null,0,null,null,null,0,null,0]
[null,null,null,null,null,0,null,0,null,null,null,0,null,0]
[null,null,null,null,null,{"$f":"SUM(D73*E73)","v":0},null,{"$f":"ROUND(F73*G73/100,2)","v":0},null,null,null,{"$f":"SUM(J73*K73)","v":0},null,{"$f":"ROUND(L73*M73/100,2)","v":0}]
[null,null,null,null,null,0,null,0,null,null,null,0,null,0]
[null,null,null,null,null,0,null,0,null,null,null,0,null,0]
[null,null,null,null,null,0,null,0,null,null,null,0,null,0]
[null,null,null,null,null,0,null,0,null,null,null,0,null,0]
[null,null,null,null,null,0,null,0,null,null,null,0,null,0]
[null,null,null,null,null,0,null,0,null,null,null,0,null,0]
[null,null,null,null,null,0,null,0,null,null,null,0,null,0]
[null,null,null,null,null,0,null,0,null,null,null,0,null,0]
[null,null,null,null,null,0,null,0,null,null,null,0,null,0]
[null,null,null,null,null,0,null,0,null,null,null,0,null,0]
[null,null,null,null,null,0,null,0,null,null,null,0,null,0]
[null,null,null,null,null,0,null,0,null,null,null,0,null,0]
[null,null,null,null,null,0,null,0,null,null,null,0,null,0]
[null,null,null,null,null,0,null,0,null,null,null,0,null,0]
[null,null,null,null,null,0,null,0,null,null,null,0,null,0]
[null,null,null,null,null,0,null,0,null,null,null,0,null,0]
[null,null,null,null,null,0,null,0,null,null,null,0,null,0]
[null,null,null,null,null,0,null,0,null,null,null,0,null,0]
[null,null,null,null,null,0,null,0,null,null,null,0,null,0]
[null,null,null,null,null,0,null,0,null,null,null,0,null,0]
[null,null,null,null,null,0,null,0,null,null,null,0,null,0]
[null,null,null,null,null,0,null,0,null,null,null,0,null,0]
[null,null,null,null,null,0,null,0,null,null,null,0,null,0]
[null,null,null,null,null,0,null,0,null,null,null,0,null,0]
[null,null,null,null,null,0,null,0,null,null,null,0,null,0]
[null,null,null,null,null,0,null,0,null,null,null,0,null,0]
[null,null,null,null,null,0,null,0,null,null,null,0,null,0]
[null,null,null,null,null,0,null,0,null,null,null,0,null,0]
[null,null,null,null,null,0,null,0,null,null,null,0,null,0]
[null,null,null,null,null,0,null,0,null,null,null,0,null,0]
[null,null,null,null,null,0,null,0,null,null,null,0,null,0]
[null,null,null,null,null,0,null,0,null,null,null,0,null,0]
[null,null,null,null,null,0,null,0,null,null,null,0,null,0]
[null,null,null,null,null,0,null,0,null,null,null,0,null,0]
[null,null,null,null,null,0,null,0,null,null,null,0,null,0]
[null,null,null,null,null,0,null,0,null,null,null,0,null,0]
[null,null,null,null,null,0,null,0,null,null,null,0,null,0]
[null,null,null,null,null,0,null,0,null,null,null,0,null,0]
[null,null,null,null,null,0,null,0,null,null,null,0,null,0]
[null,null,null,null,null,0,null,0,null,null,null,0,null,0]
[null,null,null,null,null,0,null,0,null,null,null,0,null,0]
[null,null,null,null,null,0,null,0,null,null,null,0,null,0]
[null,null,null,null,null,0,null,0,null,null,null,0,null,0]
[null,null,null,null,null,0,null,0,null,null,null,0,null,0]
[null,null,null,null,null,0,null,0,null,null,null,0,null,0]
[null,null,null,null,null,0,null,0,null,null,null,0,null,0]
[null,null,null,null,null,0,null,0,null,null,null,{"$f":"SUM(J120*K120)","v":0},null,0]

{"sheet":"17","index":17,"n_rows":120,"n_cols":15,"rows_kept":120,"cut":false,"hidden":false,"merged":[[4,1,5,1],[4,14,5,14],[0,13,0,14],[1,13,1,14]]}
[null,{"$f":"Zusammenstellung!D25","v":0},null,null,"Total Eingang",null,{"$f":"SUM(H7:H120)","v":0},"Liter 100%",null,null,null,null,null,"Kundennummer"]
[null,null,null,null,"Total Ausgang",null,{"$f":"SUM(N8:N120)","v":0},"Liter 100%",null,null,null,null,null,{"$f":"Zusammenstellung!I3","v":0}]
["Brennjahr",{"$f":"Zusammenstellung!I5","v":0},null,null,"Saldo",null,{"$f":"SUM(G1-G2)","v":0},"Liter 100%",null,null,null,null,null,{"$f":"Zusammenstellung!H4","v":0},{"$f":"Zusammenstellung!I4","v":0}]
[]
[null,"Eingang:  Erzeugung / Fabrikation \nAusgang: Name und Adresse des Käufers / Verwendung\n                  für Fabrikation / Degustation / Geschenke",null,null,null,"Eingang",null,null,null,null,null,"Ausgang",null,null,"Datum der Steuer-anmeldung"]
["Datum",null,null,"Anzahl\nFlaschen","Inhalt\nje Flasche","Liter ","Vol.%","Liter 100%",null,"Anzahl\nFlaschen","Inhalt\nje Flasche","Liter ","Vol.%","Liter 100%"]
[" ","Anfangsvorrat / Übertrag",null,null,null,{"$f":"SUM(D7*E7)","v":0},null,{"$f":"ROUND(F7*G7/100,2)","v":0}]
[null,null,null,null,null,{"$f":"SUM(D8*E8)","v":0},null,{"$f":"ROUND(F8*G8/100,2)","v":0},null,null,null,{"$f":"SUM(J8*K8)","v":0},null,{"$f":"ROUND(L8*M8/100,2)","v":0}]
[null,null,null,null,null,{"$f":"SUM(D9*E9)","v":0},null,{"$f":"ROUND(F9*G9/100,2)","v":0},null,null,null,{"$f":"SUM(J9*K9)","v":0},null,{"$f":"ROUND(L9*M9/100,2)","v":0}]
[null,null,null,null,null,0,null,0,null,null,null,0,null,0]
[null,null,null,null,null,0,null,0,null,null,null,0,null,0]
[null,null,null,null,null,0,null,0,null,null,null,0,null,0]
[null,null,null,null,null,0,null,0,null,null,null,0,null,0]
[null,null,null,null,null,0,null,0,null,null,null,0,null,0]
[null,null,null,null,null,0,null,0,null,null,null,0,null,0]
[null,null,null,null,null,0,null,0,null,null,null,0,null,0]
[null,null,null,null,null,0,null,0,null,null,null,0,null,0]
[null,null,null,null,null,0,null,0,null,null,null,0,null,0]
[null,null,null,null,null,0,null,0,null,null,null,0,null,0]
[null,null,null,null,null,0,null,0,null,null,null,0,null,0]
[null,null,null,null,null,0,null,0,null,null,null,0,null,0]
[null,null,null,null,null,0,null,0,null,null,null,0,null,0]
[null,null,null,null,null,0,null,0,null,null,null,0,null,0]
[null,null,null,null,null,0,null,0,null,null,null,0,null,0]
[null,null,null,null,null,0,null,0,null,null,null,0,null,0]
[null,null,null,null,null,0,null,0,null,null,null,0,null,0]
[null,null,null,null,null,0,null,0,null,null,null,0,null,0]
[null,null,null,null,null,0,null,0,null,null,null,0,null,0]
[null,null,null,null,null,0,null,0,null,null,null,0,null,0]
[null,null,null,null,null,0,null,0,null,null,null,0,null,0]
[null,null,null,null,null,0,null,0,null,null,null,0,null,0]
[null,null,null,null,null,0,null,0,null,null,null,0,null,0]
[null,null,null,null,null,0,null,0,null,null,null,0,null,0]
[null,null,null,null,null,0,null,0,null,null,null,0,null,0]
[null,null,null,null,null,0,null,0,null,null,null,0,null,0]
[null,null,null,null,null,0,null,0,null,null,null,0,null,0]
[null,null,null,null,null,0,null,0,null,null,null,0,null,0]
[null,null,null,null,null,0,null,0,null,null,null,0,null,0]
[null,null,null,null,null,0,null,0,null,null,null,0,null,0]
[null,null,null,null,null,0,null,0,null,null,null,0,null,0]
[null,null,null,null,null,0,null,0,null,null,null,0,null,0]
[null,null,null,null,null,0,null,0,null,null,null,0,null,0]
[null,null,null,null,null,0,null,0,null,null,null,0,null,0]
[null,null,null,null,null,0,null,0,null,null,null,0,null,0]
[null,null,null,null,null,0,null,0,null,null,null,0,null,0]
[null,null,null,null,null,0,null,0,null,null,null,0,null,0]
[null,null,null,null,null,0,null,0,null,null,null,0,null,0]
[null,null,null,null,null,0,null,0,null,null,null,0,null,0]
[null,null,null,null,null,0,null,0,null,null,null,0,null,0]
[null,null,null,null,null,0,null,0,null,null,null,0,null,0]
[null,null,null,null,null,0,null,0,null,null,null,0,null,0]
[null,null,null,null,null,0,null,0,null,null,null,0,null,0]
[null,null,null,null,null,0,null,0,null,null,null,0,null,0]
[null,null,null,null,null,0,null,0,null,null,null,0,null,0]
[null,null,null,null,null,0,null,0,null,null,null,0,null,0]
[null,null,null,null,null,0,null,0,null,null,null,0,null,0]
[null,null,null,null,null,0,null,0,null,null,null,0,null,0]
[null,null,null,null,null,0,null,0,null,null,null,0,null,0]
[null,null,null,null,null,0,null,0,null,null,null,0,null,0]
[null,null,null,null,null,0,null,0,null,null,null,0,null,0]
[null,null,null,null,null,0,null,0,null,null,null,0,null,0]
[null,null,null,null,null,0,null,0,null,null,null,0,null,0]
[null,null,null,null,null,0,null,0,null,null,null,0,null,0]
[null,null,null,null,null,0,null,0,null,null,null,0,null,0]
[null,null,null,null,null,0,null,0,null,null,null,0,null,0]
[null,null,null,null,null,0,null,0,null,null,null,0,null,0]
[null,null,null,null,null,0,null,0,null,null,null,0,null,0]
[null,null,null,null,null,0,null,0,null,null,null,0,null,0]
[null,null,null,null,null,0,null,0,null,null,null,0,null,0]
[null,null,null,null,null,0,null,0,null,null,null,0,null,0]
[null,null,null,null,null,0,null,0,null,null,null,0,null,0]
[null,null,null,null,null,0,null,0,null,null,null,0,null,0]
[null,null,null,null,null,{"$f":"SUM(D73*E73)","v":0},null,{"$f":"ROUND(F73*G73/100,2)","v":0},null,null,null,{"$f":"SUM(J73*K73)","v":0},null,{"$f":"ROUND(L73*M73/100,2)","v":0}]
[null,null,null,null,null,0,null,0,null,null,null,0,null,0]
[null,null,null,null,null,0,null,0,null,null,null,0,null,0]
[null,null,null,null,null,0,null,0,null,null,null,0,null,0]
[null,null,null,null,null,0,null,0,null,null,null,0,null,0]
[null,null,null,null,null,0,null,0,null,null,null,0,null,0]
[null,null,null,null,null,0,null,0,null,null,null,0,null,0]
[null,null,null,null,null,0,null,0,null,null,null,0,null,0]
[null,null,null,null,null,0,null,0,null,null,null,0,null,0]
[null,null,null,null,null,0,null,0,null,null,null,0,null,0]
[null,null,null,null,null,0,null,0,null,null,null,0,null,0]
[null,null,null,null,null,0,null,0,null,null,null,0,null,0]
[null,null,null,null,null,0,null,0,null,null,null,0,null,0]
[null,null,null,null,null,0,null,0,null,null,null,0,null,0]
[null,null,null,null,null,0,null,0,null,null,null,0,null,0]
[null,null,null,null,null,0,null,0,null,null,null,0,null,0]
[null,null,null,null,null,0,null,0,null,null,null,0,null,0]
[null,null,null,null,null,0,null,0,null,null,null,0,null,0]
[null,null,null,null,null,0,null,0,null,null,null,0,null,0]
[null,null,null,null,null,0,null,0,null,null,null,0,null,0]
[null,null,null,null,null,0,null,0,null,null,null,0,null,0]
[null,null,null,null,null,0,null,0,null,null,null,0,null,0]
[null,null,null,null,null,0,null,0,null,null,null,0,null,0]
[null,null,null,null,null,0,null,0,null,null,null,0,null,0]
[null,null,null,null,null,0,null,0,null,null,null,0,null,0]
[null,null,null,null,null,0,null,0,null,null,null,0,null,0]
[null,null,null,null,null,0,null,0,null,null,null,0,null,0]
[null,null,null,null,null,0,null,0,null,null,null,0,null,0]
[null,null,null,null,null,0,null,0,null,null,null,0,null,0]
[null,null,null,null,null,0,null,0,null,null,null,0,null,0]
[null,null,null,null,null,0,null,0,null,null,null,0,null,0]
[null,null,null,null,null,0,null,0,null,null,null,0,null,0]
[null,null,null,null,null,0,null,0,null,null,null,0,null,0]
[null,null,null,null,null,0,null,0,null,null,null,0,null,0]
[null,null,null,null,null,0,null,0,null,null,null,0,null,0]
[null,null,null,null,null,0,null,0,null,null,null,0,null,0]
[null,null,null,null,null,0,null,0,null,null,null,0,null,0]
[null,null,null,null,null,0,null,0,null,null,null,0,null,0]
[null,null,null,null,null,0,null,0,null,null,null,0,null,0]
[null,null,null,null,null,0,null,0,null,null,null,0,null,0]
[null,null,null,null,null,0,null,0,null,null,null,0,null,0]
[null,null,null,null,null,0,null,0,null,null,null,0,null,0]
[null,null,null,null,null,0,null,0,null,null,null,0,null,0]
[null,null,null,null,null,0,null,0,null,null,null,0,null,0]
[null,null,null,null,null,0,null,0,null,null,null,0,null,0]
[null,null,null,null,null,0,null,0,null,null,null,0,null,0]
[null,null,null,null,null,0,null,0,null,null,null,0,null,0]
[null,null,null,null,null,0,null,0,null,null,null,{"$f":"SUM(J120*K120)","v":0},null,0]

{"sheet":"18","index":18,"n_rows":120,"n_cols":15,"rows_kept":120,"cut":false,"hidden":false,"merged":[[4,1,5,1],[4,14,5,14],[0,13,0,14],[1,13,1,14]]}
[null,{"$f":"Zusammenstellung!D26","v":0},null,null,"Total Eingang",null,{"$f":"SUM(H7:H120)","v":0},"Liter 100%",null,null,null,null,null,"Kundennummer"]
[null,null,null,null,"Total Ausgang",null,{"$f":"SUM(N8:N120)","v":0},"Liter 100%",null,null,null,null,null,{"$f":"Zusammenstellung!I3","v":0}]
["Brennjahr",{"$f":"Zusammenstellung!I5","v":0},null,null,"Saldo",null,{"$f":"SUM(G1-G2)","v":0},"Liter 100%",null,null,null,null,null,{"$f":"Zusammenstellung!H4","v":0},{"$f":"Zusammenstellung!I4","v":0}]
[]
[null,"Eingang:  Erzeugung / Fabrikation \nAusgang: Name und Adresse des Käufers / Verwendung\n                  für Fabrikation / Degustation / Geschenke",null,null,null,"Eingang",null,null,null,null,null,"Ausgang",null,null,"Datum der Steuer-anmeldung"]
["Datum",null,null,"Anzahl\nFlaschen","Inhalt\nje Flasche","Liter ","Vol.%","Liter 100%",null,"Anzahl\nFlaschen","Inhalt\nje Flasche","Liter ","Vol.%","Liter 100%"]
[" ","Anfangsvorrat / Übertrag",null,null,null,{"$f":"SUM(D7*E7)","v":0},null,{"$f":"ROUND(F7*G7/100,2)","v":0}]
[null,null,null,null,null,{"$f":"SUM(D8*E8)","v":0},null,{"$f":"ROUND(F8*G8/100,2)","v":0},null,null,null,{"$f":"SUM(J8*K8)","v":0},null,{"$f":"ROUND(L8*M8/100,2)","v":0}]
[null,null,null,null,null,{"$f":"SUM(D9*E9)","v":0},null,{"$f":"ROUND(F9*G9/100,2)","v":0},null,null,null,{"$f":"SUM(J9*K9)","v":0},null,{"$f":"ROUND(L9*M9/100,2)","v":0}]
[null,null,null,null,null,0,null,0,null,null,null,0,null,0]
[null,null,null,null,null,0,null,0,null,null,null,0,null,0]
[null,null,null,null,null,0,null,0,null,null,null,0,null,0]
[null,null,null,null,null,0,null,0,null,null,null,0,null,0]
[null,null,null,null,null,0,null,0,null,null,null,0,null,0]
[null,null,null,null,null,0,null,0,null,null,null,0,null,0]
[null,null,null,null,null,0,null,0,null,null,null,0,null,0]
[null,null,null,null,null,0,null,0,null,null,null,0,null,0]
[null,null,null,null,null,0,null,0,null,null,null,0,null,0]
[null,null,null,null,null,0,null,0,null,null,null,0,null,0]
[null,null,null,null,null,0,null,0,null,null,null,0,null,0]
[null,null,null,null,null,0,null,0,null,null,null,0,null,0]
[null,null,null,null,null,0,null,0,null,null,null,0,null,0]
[null,null,null,null,null,0,null,0,null,null,null,0,null,0]
[null,null,null,null,null,0,null,0,null,null,null,0,null,0]
[null,null,null,null,null,0,null,0,null,null,null,0,null,0]
[null,null,null,null,null,0,null,0,null,null,null,0,null,0]
[null,null,null,null,null,0,null,0,null,null,null,0,null,0]
[null,null,null,null,null,0,null,0,null,null,null,0,null,0]
[null,null,null,null,null,0,null,0,null,null,null,0,null,0]
[null,null,null,null,null,0,null,0,null,null,null,0,null,0]
[null,null,null,null,null,0,null,0,null,null,null,0,null,0]
[null,null,null,null,null,0,null,0,null,null,null,0,null,0]
[null,null,null,null,null,0,null,0,null,null,null,0,null,0]
[null,null,null,null,null,0,null,0,null,null,null,0,null,0]
[null,null,null,null,null,0,null,0,null,null,null,0,null,0]
[null,null,null,null,null,0,null,0,null,null,null,0,null,0]
[null,null,null,null,null,0,null,0,null,null,null,0,null,0]
[null,null,null,null,null,0,null,0,null,null,null,0,null,0]
[null,null,null,null,null,0,null,0,null,null,null,0,null,0]
[null,null,null,null,null,0,null,0,null,null,null,0,null,0]
[null,null,null,null,null,0,null,0,null,null,null,0,null,0]
[null,null,null,null,null,0,null,0,null,null,null,0,null,0]
[null,null,null,null,null,0,null,0,null,null,null,0,null,0]
[null,null,null,null,null,0,null,0,null,null,null,0,null,0]
[null,null,null,null,null,0,null,0,null,null,null,0,null,0]
[null,null,null,null,null,0,null,0,null,null,null,0,null,0]
[null,null,null,null,null,0,null,0,null,null,null,0,null,0]
[null,null,null,null,null,0,null,0,null,null,null,0,null,0]
[null,null,null,null,null,0,null,0,null,null,null,0,null,0]
[null,null,null,null,null,0,null,0,null,null,null,0,null,0]
[null,null,null,null,null,0,null,0,null,null,null,0,null,0]
[null,null,null,null,null,0,null,0,null,null,null,0,null,0]
[null,null,null,null,null,0,null,0,null,null,null,0,null,0]
[null,null,null,null,null,0,null,0,null,null,null,0,null,0]
[null,null,null,null,null,0,null,0,null,null,null,0,null,0]
[null,null,null,null,null,0,null,0,null,null,null,0,null,0]
[null,null,null,null,null,0,null,0,null,null,null,0,null,0]
[null,null,null,null,null,0,null,0,null,null,null,0,null,0]
[null,null,null,null,null,0,null,0,null,null,null,0,null,0]
[null,null,null,null,null,0,null,0,null,null,null,0,null,0]
[null,null,null,null,null,0,null,0,null,null,null,0,null,0]
[null,null,null,null,null,0,null,0,null,null,null,0,null,0]
[null,null,null,null,null,0,null,0,null,null,null,0,null,0]
[null,null,null,null,null,0,null,0,null,null,null,0,null,0]
[null,null,null,null,null,0,null,0,null,null,null,0,null,0]
[null,null,null,null,null,0,null,0,null,null,null,0,null,0]
[null,null,null,null,null,0,null,0,null,null,null,0,null,0]
[null,null,null,null,null,0,null,0,null,null,null,0,null,0]
[null,null,null,null,null,0,null,0,null,null,null,0,null,0]
[null,null,null,null,null,0,null,0,null,null,null,0,null,0]
[null,null,null,null,null,0,null,0,null,null,null,0,null,0]
[null,null,null,null,null,0,null,0,null,null,null,0,null,0]
[null,null,null,null,null,{"$f":"SUM(D73*E73)","v":0},null,{"$f":"ROUND(F73*G73/100,2)","v":0},null,null,null,{"$f":"SUM(J73*K73)","v":0},null,{"$f":"ROUND(L73*M73/100,2)","v":0}]
[null,null,null,null,null,0,null,0,null,null,null,0,null,0]
[null,null,null,null,null,0,null,0,null,null,null,0,null,0]
[null,null,null,null,null,0,null,0,null,null,null,0,null,0]
[null,null,null,null,null,0,null,0,null,null,null,0,null,0]
[null,null,null,null,null,0,null,0,null,null,null,0,null,0]
[null,null,null,null,null,0,null,0,null,null,null,0,null,0]
[null,null,null,null,null,0,null,0,null,null,null,0,null,0]
[null,null,null,null,null,0,null,0,null,null,null,0,null,0]
[null,null,null,null,null,0,null,0,null,null,null,0,null,0]
[null,null,null,null,null,0,null,0,null,null,null,0,null,0]
[null,null,null,null,null,0,null,0,null,null,null,0,null,0]
[null,null,null,null,null,0,null,0,null,null,null,0,null,0]
[null,null,null,null,null,0,null,0,null,null,null,0,null,0]
[null,null,null,null,null,0,null,0,null,null,null,0,null,0]
[null,null,null,null,null,0,null,0,null,null,null,0,null,0]
[null,null,null,null,null,0,null,0,null,null,null,0,null,0]
[null,null,null,null,null,0,null,0,null,null,null,0,null,0]
[null,null,null,null,null,0,null,0,null,null,null,0,null,0]
[null,null,null,null,null,0,null,0,null,null,null,0,null,0]
[null,null,null,null,null,0,null,0,null,null,null,0,null,0]
[null,null,null,null,null,0,null,0,null,null,null,0,null,0]
[null,null,null,null,null,0,null,0,null,null,null,0,null,0]
[null,null,null,null,null,0,null,0,null,null,null,0,null,0]
[null,null,null,null,null,0,null,0,null,null,null,0,null,0]
[null,null,null,null,null,0,null,0,null,null,null,0,null,0]
[null,null,null,null,null,0,null,0,null,null,null,0,null,0]
[null,null,null,null,null,0,null,0,null,null,null,0,null,0]
[null,null,null,null,null,0,null,0,null,null,null,0,null,0]
[null,null,null,null,null,0,null,0,null,null,null,0,null,0]
[null,null,null,null,null,0,null,0,null,null,null,0,null,0]
[null,null,null,null,null,0,null,0,null,null,null,0,null,0]
[null,null,null,null,null,0,null,0,null,null,null,0,null,0]
[null,null,null,null,null,0,null,0,null,null,null,0,null,0]
[null,null,null,null,null,0,null,0,null,null,null,0,null,0]
[null,null,null,null,null,0,null,0,null,null,null,0,null,0]
[null,null,null,null,null,0,null,0,null,null,null,0,null,0]
[null,null,null,null,null,0,null,0,null,null,null,0,null,0]
[null,null,null,null,null,0,null,0,null,null,null,0,null,0]
[null,null,null,null,null,0,null,0,null,null,null,0,null,0]
[null,null,null,null,null,0,null,0,null,null,null,0,null,0]
[null,null,null,null,null,0,null,0,null,null,null,0,null,0]
[null,null,null,null,null,0,null,0,null,null,null,0,null,0]
[null,null,null,null,null,0,null,0,null,null,null,0,null,0]
[null,null,null,null,null,0,null,0,null,null,null,0,null,0]
[null,null,null,null,null,0,null,0,null,null,null,0,null,0]
[null,null,null,null,null,0,null,0,null,null,null,0,null,0]
[null,null,null,null,null,0,null,0,null,null,null,{"$f":"SUM(J120*K120)","v":0},null,0]